Workbook

Sheet Cover
M2: Example and Worksheet Checklist
G3: Statistical Measurement Methods in Excel: Basic
N4: Simple Bayes
N5: The Beta Distribution
N6: The Rule of Succession
N7: Catch and Recatch
N8: The Mathless Table
N9: Estimating a Distribution and Mean
F13: Hubbard Decision Research
F14: 2S410 Canterbury Ct
F15: Glen Ellyn, IL 60137
F16: www.hubbardresearch.com

Sheet Simple Bayes
A1: The Urn of Mystery: A Simple Bayesian Example
C2: Bayesian methods work out the probability of something given a "prior" probability and new data. The charts below show the simplest example of a Bayesian inference. Consider two urns, A and B. Each urn contains a large number of red and green marbles but the proporations of colors are different between the urns. You know the proportion of marbles in each urn but you don't know which urn is which. You try to determine the probability you are drawing from urn A by the color of a single randomly drawn marble. Urn A can be thought of as a hypothesis H being true and the draw of a red marble can be thought of as specific observed data D. You have a prior for H of P(H) and you would like to know the probability of H given additional data D, written P(H|D). This simple example applies to many practical situations by itself (medical tests, quality control, etc.) and it is also the basis of more elaborate methods shown in some of the other worksheets in this file.
A5: "It Depends" - If I knew this, I would change this probability.
A6: If we knew which urn we drew from, we would know the probability of drawing a red marble. This is a Conditional Probability. The probability of drawing Red given we are drawing from urn A, can be written as P(R|A). | D6: Urn A | I6: Urn B
D7: P(R|A)= | E7: 0.7 | I7: P(R|B)= | J7: 0.1
D8: P(G|A)= | E8: =1-E7 -> 0.3 | I8: P(G|B)= | J8: =1-J7 -> 0.9
G9: =E7 -> 0.7 | L9: =J7 -> 0.1
G10: =1-G9 -> 0.3 | L10: =1-L9 -> 0.9
A12: "To Be or Not To Be" - What is my current uncertainty?
A13: The probability we are drawing from urn A or B is written P(A) and P(B) respectively. This is the "prior" probability, or "What do I know now?" These are mutually exclusive and colletively exhaustive, so they follow the Compliment Rule: P(A)+P(~A)=1. | G13: Which Urn?
G14: P(A)= | H14: 0.5 | K14: B | L14: =H15 -> 0.5
G15: P(B)= | H15: =1-H14 -> 0.5 | K15: A | L15: =H14 -> 0.5
G16: Change Yellow Cells!
G17: Blue Cells Are Computed Output!
A19: "What might I see if I look?" What's the chance of a particular observation?
A20: The chance of drawing a red marble, without knowing which urn you draw from, is the probability weighted average of drawing red from each urn. This is the Law of Total Probability: P(R )=P(R|A)P(A)+P(R|B)P(B) | G20: Total Probability
G21: P(R )= | H21: =H14*E7+H15*J7 -> 0.4
G22: P(G )= | H22: =1-H21 -> 0.6 | K22: =H21 -> 0.4
K23: =1-K22 -> 0.6
A26: What did I learn?
A27: New information (even one draw) updates my prior to a posterior probability. This is computed using the priors, the conditionals, and the total probabilities with Bayes Rule: P(A|R)=P(A)P(R|A)/P(R ) | D27: If Red is drawn | I27: If Green is drawn
D28: P(A|R)= | E28: =H14*E7/H21 -> 0.875 | I28: P(A|G)= | J28: =H14*E8/H22 -> 0.25
D29: P(B|R)= | E29: =1-E28 -> 0.125 | I29: P(B|G)= | J29: =1-J28 -> 0.75
F30: B | G30: =E29 -> 0.125 | K30: B | L30: =J29 -> 0.75
F31: A | G31: =1-G30 -> 0.875 | K31: A | L31: =1-L30 -> 0.25

Sheet BetaDistPopProportion Ws
A1: Worksheet: The Beta Distribution
A2: This spreadsheet computes how uncertainty about an estimate of a "population proportion" (e.g., "what percentage of customers want X?"). It uses a method called a beta distribution, which allows for establishing a "prior" uncertainty which is updated with new data. Enter values in the yellow "prior" fields to set the initial estimate. Enter "hits" and "misses" from a random sample in the yellow "Observations" fields. This distribution is confirmed using the probability of seeing that outcome from a Binomial distribution.
B5: Prior | C5: w/Data
A6: alpha | B6: 1 | C6: =B6+C15 -> 1
A7: beta | B7: 1 | C7: =B7+C16 -> 1
A9: P5 | B9: =_xlfn.BETA.INV(0.05,B6,B7) -> 0.05 | C9: =_xlfn.BETA.INV(0.05,C6,C7) -> 0.05
A10: Median | B10: =_xlfn.BETA.INV(0.5,B6,B7) -> 0.5 | C10: =_xlfn.BETA.INV(0.5,C6,C7) -> 0.5
A11: Mean | B11: =B6/(B6+B7) -> 0.5 | C11: =C6/(C6+C7) -> 0.5
A12: P95 | B12: =_xlfn.BETA.INV(0.95,B6,B7) -> 0.95 | C12: =_xlfn.BETA.INV(0.95,C6,C7) -> 0.95
A14: Observations
A15: "Hits" | C15: 0
A16: "Misses" | C16: 0
A17: Total Observations | C17: =C16+C15 -> 0
A19: Calcs for Chart Boundaries
A20: =A21 -> 0.05 | B20: 0
A21: =B9 -> 0.05 | B21: =VLOOKUP(A21,D$31:E$1029,2) -> 0.001
A22: =A23 -> 0.95 | B22: 0
A23: =B12 -> 0.95 | B23: =VLOOKUP(A23,D$31:E$1029,2) -> 0.001
A24: =A25 -> 0.05 | B24: 0
A25: =C9 -> 0.05 | B25: =VLOOKUP(A25,D$31:F$1029,3) -> 0.001
A26: =A27 -> 0.95 | B26: 0
A27: =C12 -> 0.95 | B27: =VLOOKUP(A27,D$31:F$1029,3) -> 0.001
D29: Chart Distribution Calculations | G29: Prob. of sample result if the hypothetical proportion was the actual proportion | H29: Bayesian Inversion: Prob. that actual proportion is equal to hypothetical proportion
D30: Population Proportion | E30: Prior | F30: w/Data
D31: 0.001 | E31: =_xlfn.BETA.DIST(D31+D$31/2,B$6,B$7,1)-_xlfn.BETA.DIST(D31-D$31/2,B$6,B$7,1) -> 0.001 | F31: =_xlfn.BETA.DIST(D31+D$31/2,C$6,C$7,1)-_xlfn.BETA.DIST(D31-D$31/2,C$6,C$7,1) -> 0.001 | G31: =BINOMDIST(C$15,C$15+C$16,D31,0) -> 1 | H31: =(G31*E31/SUMPRODUCT($G$31:$G$1029,$E$31:$E$1029)) -> 0.001001001001
D32: =D31+D$31 -> 0.002 | E32: 0.001 | F32: 0.001 | G32: 1 | H32: =(G32*E32/SUMPRODUCT($G$31:$G$1029,$E$31:$E$1029)) -> 0.001001001001
D33: 0.003 | E33: 0.001 | F33: =_xlfn.BETA.DIST(D33+D$31/2,C$6,C$7,1)-_xlfn.BETA.DIST(D33-D$31/2,C$6,C$7,1) -> 0.001 | G33: 1 | H33: 0.001001001001
D34: 0.004 | E34: 0.001 | F34: 0.001 | G34: 1 | H34: 0.001001001001
D35: 0.005 | E35: 0.001 | F35: 0.001 | G35: 1 | H35: 0.001001001001
D36: 0.006 | E36: 0.001 | F36: 0.001 | G36: =BINOMDIST(C$15,C$15+C$16,D36,0) -> 1 | H36: 0.001001001001
D37: 0.007 | E37: 0.001 | F37: 0.001 | G37: 1 | H37: 0.001001001001
D38: 0.008 | E38: 0.001 | F38: 0.001 | G38: 1 | H38: 0.001001001001
D39: 0.009 | E39: 0.001 | F39: 0.001 | G39: 1 | H39: 0.001001001001
D40: 0.01 | E40: 0.001 | F40: 0.001 | G40: 1 | H40: 0.001001001001
D41: 0.011 | E41: 0.001 | F41: 0.001 | G41: 1 | H41: 0.001001001001
D42: 0.012 | E42: 0.001 | F42: 0.001 | G42: 1 | H42: 0.001001001001
D43: 0.013 | E43: 0.001 | F43: 0.001 | G43: 1 | H43: 0.001001001001
D44: 0.014 | E44: 0.001 | F44: 0.001 | G44: 1 | H44: 0.001001001001
D45: 0.015 | E45: 0.001 | F45: 0.001 | G45: 1 | H45: 0.001001001001
D46: 0.016 | E46: 0.001 | F46: 0.001 | G46: 1 | H46: 0.001001001001
D47: 0.017 | E47: 0.001 | F47: 0.001 | G47: 1 | H47: 0.001001001001
D48: 0.018 | E48: 0.001 | F48: 0.001 | G48: 1 | H48: 0.001001001001
D49: 0.019 | E49: 0.001 | F49: 0.001 | G49: 1 | H49: 0.001001001001
D50: 0.02 | E50: 0.001 | F50: 0.001 | G50: 1 | H50: 0.001001001001
D51: 0.021 | E51: 0.001 | F51: 0.001 | G51: 1 | H51: 0.001001001001
D52: 0.022 | E52: 0.001 | F52: 0.001 | G52: 1 | H52: 0.001001001001
D53: 0.023 | E53: 0.001 | F53: 0.001 | G53: 1 | H53: 0.001001001001
D54: 0.024 | E54: 0.001 | F54: 0.001 | G54: 1 | H54: 0.001001001001
D55: 0.025 | E55: 0.001 | F55: 0.001 | G55: 1 | H55: 0.001001001001
D56: 0.026 | E56: 0.001 | F56: 0.001 | G56: 1 | H56: 0.001001001001
D57: 0.027 | E57: 0.001 | F57: 0.001 | G57: 1 | H57: 0.001001001001
D58: 0.028 | E58: 0.001 | F58: 0.001 | G58: 1 | H58: 0.001001001001
D59: 0.029 | E59: 0.001 | F59: 0.001 | G59: 1 | H59: 0.001001001001
D60: 0.03 | E60: 0.001 | F60: 0.001 | G60: 1 | H60: 0.001001001001
D61: 0.031 | E61: 0.001 | F61: 0.001 | G61: 1 | H61: 0.001001001001
D62: 0.032 | E62: 0.001 | F62: 0.001 | G62: 1 | H62: 0.001001001001
D63: 0.033 | E63: 0.001 | F63: 0.001 | G63: 1 | H63: 0.001001001001
D64: 0.034 | E64: 0.001 | F64: 0.001 | G64: 1 | H64: 0.001001001001
D65: 0.035 | E65: 0.001 | F65: 0.001 | G65: 1 | H65: 0.001001001001
D66: 0.036 | E66: 0.001 | F66: 0.001 | G66: 1 | H66: 0.001001001001
D67: 0.037 | E67: 0.001 | F67: 0.001 | G67: 1 | H67: 0.001001001001
D68: 0.038 | E68: 0.001 | F68: 0.001 | G68: 1 | H68: 0.001001001001
D69: 0.039 | E69: 0.001 | F69: 0.001 | G69: 1 | H69: 0.001001001001
D70: 0.04 | E70: 0.001 | F70: 0.001 | G70: 1 | H70: 0.001001001001
D71: 0.041 | E71: 0.001 | F71: 0.001 | G71: 1 | H71: 0.001001001001
D72: 0.042 | E72: 0.001 | F72: 0.001 | G72: 1 | H72: 0.001001001001
D73: 0.043 | E73: 0.001 | F73: 0.001 | G73: 1 | H73: 0.001001001001
D74: 0.044 | E74: 0.001 | F74: 0.001 | G74: 1 | H74: 0.001001001001
D75: 0.045 | E75: 0.001 | F75: 0.001 | G75: 1 | H75: 0.001001001001
D76: 0.046 | E76: 0.001 | F76: 0.001 | G76: 1 | H76: 0.001001001001
D77: 0.047 | E77: 0.001 | F77: 0.001 | G77: 1 | H77: 0.001001001001
D78: 0.048 | E78: 0.001 | F78: 0.001 | G78: 1 | H78: 0.001001001001
D79: 0.049 | E79: 0.001 | F79: 0.001 | G79: 1 | H79: 0.001001001001
D80: 0.05 | E80: 0.001 | F80: 0.001 | G80: 1 | H80: 0.001001001001
D81: 0.051 | E81: 0.001 | F81: 0.001 | G81: 1 | H81: 0.001001001001
D82: 0.052 | E82: 0.001 | F82: 0.001 | G82: 1 | H82: 0.001001001001
D83: 0.053 | E83: 0.001 | F83: 0.001 | G83: 1 | H83: 0.001001001001
D84: 0.054 | E84: 0.001 | F84: 0.001 | G84: 1 | H84: 0.001001001001
D85: 0.055 | E85: 0.001 | F85: 0.001 | G85: 1 | H85: 0.001001001001
D86: 0.056 | E86: 0.001 | F86: 0.001 | G86: 1 | H86: 0.001001001001
D87: 0.057 | E87: 0.001 | F87: 0.001 | G87: 1 | H87: 0.001001001001
D88: 0.058 | E88: 0.001 | F88: 0.001 | G88: 1 | H88: 0.001001001001
D89: 0.059 | E89: 0.001 | F89: 0.001 | G89: 1 | H89: 0.001001001001
D90: 0.06 | E90: 0.001 | F90: 0.001 | G90: 1 | H90: 0.001001001001
D91: 0.061 | E91: 0.001 | F91: 0.001 | G91: 1 | H91: 0.001001001001
D92: 0.062 | E92: 0.001 | F92: 0.001 | G92: 1 | H92: 0.001001001001
D93: 0.063 | E93: 0.001 | F93: 0.001 | G93: 1 | H93: 0.001001001001
D94: 0.064 | E94: 0.001 | F94: 0.001 | G94: 1 | H94: 0.001001001001
D95: 0.065 | E95: =_xlfn.BETA.DIST(D95+D$31/2,B$6,B$7,1)-_xlfn.BETA.DIST(D95-D$31/2,B$6,B$7,1) -> 0.001 | F95: =_xlfn.BETA.DIST(D95+D$31/2,C$6,C$7,1)-_xlfn.BETA.DIST(D95-D$31/2,C$6,C$7,1) -> 0.001 | G95: =BINOMDIST(C$15,C$15+C$16,D95,0) -> 1 | H95: 0.001001001001
D96: =D95+D$31 -> 0.066 | E96: 0.001 | F96: 0.001 | G96: 1 | H96: =(G96*E96/SUMPRODUCT($G$31:$G$1029,$E$31:$E$1029)) -> 0.001001001001
D97: 0.067 | E97: 0.001 | F97: 0.001 | G97: 1 | H97: 0.001001001001
D98: 0.068 | E98: 0.001 | F98: 0.001 | G98: 1 | H98: 0.001001001001
D99: 0.069 | E99: 0.001 | F99: 0.001 | G99: 1 | H99: 0.001001001001
D100: 0.07 | E100: 0.001 | F100: 0.001 | G100: 1 | H100: 0.001001001001
D101: 0.071 | E101: 0.001 | F101: 0.001 | G101: 1 | H101: 0.001001001001
D102: 0.072 | E102: 0.001 | F102: 0.001 | G102: 1 | H102: 0.001001001001
D103: 0.073 | E103: 0.001 | F103: 0.001 | G103: 1 | H103: 0.001001001001
D104: 0.074 | E104: 0.001 | F104: 0.001 | G104: 1 | H104: 0.001001001001
D105: 0.075 | E105: 0.001 | F105: 0.001 | G105: 1 | H105: 0.001001001001
D106: 0.076 | E106: 0.001 | F106: 0.001 | G106: 1 | H106: 0.001001001001
D107: 0.077 | E107: 0.001 | F107: 0.001 | G107: 1 | H107: 0.001001001001
D108: 0.078 | E108: 0.001 | F108: 0.001 | G108: 1 | H108: 0.001001001001
D109: 0.079 | E109: 0.001 | F109: 0.001 | G109: 1 | H109: 0.001001001001
D110: 0.08 | E110: 0.001 | F110: 0.001 | G110: 1 | H110: 0.001001001001
D111: 0.081 | E111: 0.001 | F111: 0.001 | G111: 1 | H111: 0.001001001001
D112: 0.082 | E112: 0.001 | F112: 0.001 | G112: 1 | H112: 0.001001001001
D113: 0.083 | E113: 0.001 | F113: 0.001 | G113: 1 | H113: 0.001001001001
D114: 0.084 | E114: 0.001 | F114: 0.001 | G114: 1 | H114: 0.001001001001
D115: 0.085 | E115: 0.001 | F115: 0.001 | G115: 1 | H115: 0.001001001001
D116: 0.086 | E116: 0.001 | F116: 0.001 | G116: 1 | H116: 0.001001001001
D117: 0.087 | E117: 0.001 | F117: 0.001 | G117: 1 | H117: 0.001001001001
D118: 0.088 | E118: 0.001 | F118: 0.001 | G118: 1 | H118: 0.001001001001
D119: 0.089 | E119: 0.001 | F119: 0.001 | G119: 1 | H119: 0.001001001001
D120: 0.09 | E120: 0.001 | F120: 0.001 | G120: 1 | H120: 0.001001001001
D121: 0.091 | E121: 0.001 | F121: 0.001 | G121: 1 | H121: 0.001001001001
D122: 0.092 | E122: 0.001 | F122: 0.001 | G122: 1 | H122: 0.001001001001
D123: 0.093 | E123: 0.001 | F123: 0.001 | G123: 1 | H123: 0.001001001001
D124: 0.094 | E124: 0.001 | F124: 0.001 | G124: 1 | H124: 0.001001001001
D125: 0.095 | E125: 0.001 | F125: 0.001 | G125: 1 | H125: 0.001001001001
D126: 0.096 | E126: 0.001 | F126: 0.001 | G126: 1 | H126: 0.001001001001
D127: 0.097 | E127: 0.001 | F127: 0.001 | G127: 1 | H127: 0.001001001001
D128: 0.098 | E128: 0.001 | F128: 0.001 | G128: 1 | H128: 0.001001001001
D129: 0.099 | E129: 0.001 | F129: 0.001 | G129: 1 | H129: 0.001001001001
D130: 0.1 | E130: 0.001 | F130: 0.001 | G130: 1 | H130: 0.001001001001
D131: 0.101 | E131: 0.001 | F131: 0.001 | G131: 1 | H131: 0.001001001001
D132: 0.102 | E132: 0.001 | F132: 0.001 | G132: 1 | H132: 0.001001001001
D133: 0.103 | E133: 0.001 | F133: 0.001 | G133: 1 | H133: 0.001001001001
D134: 0.104 | E134: 0.001 | F134: 0.001 | G134: 1 | H134: 0.001001001001
D135: 0.105 | E135: 0.001 | F135: 0.001 | G135: 1 | H135: 0.001001001001
D136: 0.106 | E136: 0.001 | F136: 0.001 | G136: 1 | H136: 0.001001001001
D137: 0.107 | E137: 0.001 | F137: 0.001 | G137: 1 | H137: 0.001001001001
D138: 0.108 | E138: 0.001 | F138: 0.001 | G138: 1 | H138: 0.001001001001
D139: 0.109 | E139: 0.001 | F139: 0.001 | G139: 1 | H139: 0.001001001001
D140: 0.11 | E140: 0.001 | F140: 0.001 | G140: 1 | H140: 0.001001001001
D141: 0.111 | E141: 0.001 | F141: 0.001 | G141: 1 | H141: 0.001001001001
D142: 0.112 | E142: 0.001 | F142: 0.001 | G142: 1 | H142: 0.001001001001
D143: 0.113 | E143: 0.001 | F143: 0.001 | G143: 1 | H143: 0.001001001001
D144: 0.114 | E144: 0.001 | F144: 0.001 | G144: 1 | H144: 0.001001001001
D145: 0.115 | E145: 0.001 | F145: 0.001 | G145: 1 | H145: 0.001001001001
D146: 0.116 | E146: 0.001 | F146: 0.001 | G146: 1 | H146: 0.001001001001
D147: 0.117 | E147: 0.001 | F147: 0.001 | G147: 1 | H147: 0.001001001001
D148: 0.118 | E148: 0.001 | F148: 0.001 | G148: 1 | H148: 0.001001001001
D149: 0.119 | E149: 0.001 | F149: 0.001 | G149: 1 | H149: 0.001001001001
D150: 0.12 | E150: 0.001 | F150: 0.001 | G150: 1 | H150: 0.001001001001
D151: 0.121 | E151: 0.001 | F151: 0.001 | G151: 1 | H151: 0.001001001001
D152: 0.122 | E152: 0.001 | F152: 0.001 | G152: 1 | H152: 0.001001001001
D153: 0.123 | E153: 0.001 | F153: 0.001 | G153: 1 | H153: 0.001001001001
D154: 0.124 | E154: 0.001 | F154: 0.001 | G154: 1 | H154: 0.001001001001
D155: 0.125 | E155: 0.001 | F155: 0.001 | G155: 1 | H155: 0.001001001001
D156: 0.126 | E156: 0.001 | F156: 0.001 | G156: 1 | H156: 0.001001001001
D157: 0.127 | E157: 0.001 | F157: 0.001 | G157: 1 | H157: 0.001001001001
D158: 0.128 | E158: 0.001 | F158: 0.001 | G158: 1 | H158: 0.001001001001
D159: 0.129 | E159: =_xlfn.BETA.DIST(D159+D$31/2,B$6,B$7,1)-_xlfn.BETA.DIST(D159-D$31/2,B$6,B$7,1) -> 0.001 | F159: =_xlfn.BETA.DIST(D159+D$31/2,C$6,C$7,1)-_xlfn.BETA.DIST(D159-D$31/2,C$6,C$7,1) -> 0.001 | G159: =BINOMDIST(C$15,C$15+C$16,D159,0) -> 1 | H159: 0.001001001001
D160: =D159+D$31 -> 0.13 | E160: 0.001 | F160: 0.001 | G160: 1 | H160: =(G160*E160/SUMPRODUCT($G$31:$G$1029,$E$31:$E$1029)) -> 0.001001001001
D161: 0.131 | E161: 0.001 | F161: 0.001 | G161: 1 | H161: 0.001001001001
D162: 0.132 | E162: 0.001 | F162: 0.001 | G162: 1 | H162: 0.001001001001
D163: 0.133 | E163: 0.001 | F163: 0.001 | G163: 1 | H163: 0.001001001001
D164: 0.134 | E164: 0.001 | F164: 0.001 | G164: 1 | H164: 0.001001001001
D165: 0.135 | E165: 0.001 | F165: 0.001 | G165: 1 | H165: 0.001001001001
D166: 0.136 | E166: 0.001 | F166: 0.001 | G166: 1 | H166: 0.001001001001
D167: 0.137 | E167: 0.001 | F167: 0.001 | G167: 1 | H167: 0.001001001001
D168: 0.138 | E168: 0.001 | F168: 0.001 | G168: 1 | H168: 0.001001001001
D169: 0.139 | E169: 0.001 | F169: 0.001 | G169: 1 | H169: 0.001001001001
D170: 0.14 | E170: 0.001 | F170: 0.001 | G170: 1 | H170: 0.001001001001
D171: 0.141 | E171: 0.001 | F171: 0.001 | G171: 1 | H171: 0.001001001001
D172: 0.142 | E172: 0.001 | F172: 0.001 | G172: 1 | H172: 0.001001001001
D173: 0.143 | E173: 0.001 | F173: 0.001 | G173: 1 | H173: 0.001001001001
D174: 0.144 | E174: 0.001 | F174: 0.001 | G174: 1 | H174: 0.001001001001
D175: 0.145 | E175: 0.001 | F175: 0.001 | G175: 1 | H175: 0.001001001001
D176: 0.146 | E176: 0.001 | F176: 0.001 | G176: 1 | H176: 0.001001001001
D177: 0.147 | E177: 0.001 | F177: 0.001 | G177: 1 | H177: 0.001001001001
D178: 0.148 | E178: 0.001 | F178: 0.001 | G178: 1 | H178: 0.001001001001
D179: 0.149 | E179: 0.001 | F179: 0.001 | G179: 1 | H179: 0.001001001001
D180: 0.15 | E180: 0.001 | F180: 0.001 | G180: 1 | H180: 0.001001001001
D181: 0.151 | E181: 0.001 | F181: 0.001 | G181: 1 | H181: 0.001001001001
D182: 0.152 | E182: 0.001 | F182: 0.001 | G182: 1 | H182: 0.001001001001
D183: 0.153 | E183: 0.001 | F183: 0.001 | G183: 1 | H183: 0.001001001001
D184: 0.154 | E184: 0.001 | F184: 0.001 | G184: 1 | H184: 0.001001001001
D185: 0.155 | E185: 0.001 | F185: 0.001 | G185: 1 | H185: 0.001001001001
D186: 0.156 | E186: 0.001 | F186: 0.001 | G186: 1 | H186: 0.001001001001
D187: 0.157 | E187: 0.001 | F187: 0.001 | G187: 1 | H187: 0.001001001001
D188: 0.158 | E188: 0.001 | F188: 0.001 | G188: 1 | H188: 0.001001001001
D189: 0.159 | E189: 0.001 | F189: 0.001 | G189: 1 | H189: 0.001001001001
D190: 0.16 | E190: 0.001 | F190: 0.001 | G190: 1 | H190: 0.001001001001
D191: 0.161 | E191: 0.001 | F191: 0.001 | G191: 1 | H191: 0.001001001001
D192: 0.162 | E192: 0.001 | F192: 0.001 | G192: 1 | H192: 0.001001001001
D193: 0.163 | E193: 0.001 | F193: 0.001 | G193: 1 | H193: 0.001001001001
D194: 0.164 | E194: 0.001 | F194: 0.001 | G194: 1 | H194: 0.001001001001
D195: 0.165 | E195: 0.001 | F195: 0.001 | G195: 1 | H195: 0.001001001001
D196: 0.166 | E196: 0.001 | F196: 0.001 | G196: 1 | H196: 0.001001001001
D197: 0.167 | E197: 0.001 | F197: 0.001 | G197: 1 | H197: 0.001001001001
D198: 0.168 | E198: 0.001 | F198: 0.001 | G198: 1 | H198: 0.001001001001
D199: 0.169 | E199: 0.001 | F199: 0.001 | G199: 1 | H199: 0.001001001001
D200: 0.17 | E200: 0.001 | F200: 0.001 | G200: 1 | H200: 0.001001001001
D201: 0.171 | E201: 0.001 | F201: 0.001 | G201: 1 | H201: 0.001001001001
D202: 0.172 | E202: 0.001 | F202: 0.001 | G202: 1 | H202: 0.001001001001
D203: 0.173 | E203: 0.001 | F203: 0.001 | G203: 1 | H203: 0.001001001001
D204: 0.174 | E204: 0.001 | F204: 0.001 | G204: 1 | H204: 0.001001001001
D205: 0.175 | E205: 0.001 | F205: 0.001 | G205: 1 | H205: 0.001001001001
D206: 0.176 | E206: 0.001 | F206: 0.001 | G206: 1 | H206: 0.001001001001
... 823 more rows

Sheet Rule of Succession
A1: Laplace's Rule of Succession
A25: Other Handy "Naïve" Estimators
A52: Process for Estimating the Baseline

Sheet CatchRecatch Ws
A1: Worksheet: Computing a 90% Confidence with Catch/Recatch
A2: This shows the calculations for the estimation of the size of a population when you can't actually count or even see the entire population. Note the similarities to and differences from the 90% CI calculation on other worksheets.
A3: 90% Confidence Interval Calculations
A4: First sample size (i.e. the fish that were tagged) | B4: 1000
A5: The second sample size | B5: 1000
A6: Overlap between samples (i.e. the tagged fish that showed up in the second sample) - THIS APPROXIMATION IS ONLY VALID WHERE THIS VALUE >10 | B6: 100
C7: Beta Distribution
A11: Computing bounds for 90% CI for the percentage of tagged fish
A12: Upper bound | C12: =_xlfn.BETA.INV(0.95,B6+1,B5-B6+1) -> 0.1168757644
A13: Lower bound | C13: =_xlfn.BETA.INV(0.05,B6+1,B5-B6+1) -> 0.08562717916
A14: Computing bounds for 90% CI for the total population of fish
A15: Upper bound | C15: =(B4-B6)/C13+B5 -> 11510.68141
A16: Lower bound | C16: =(B4-B6)/C12+B5 -> 8700.484393

Sheet Mathless Table
A1: The "Mathless Table"

Sheet EstimatingDistAndMean Ex
A1: Example Estimating a Population Distribution and Mean
A2: This worksheet computes a distribution for he estimate of the mean of several different population data sets. For each data set it will also compute an estimate of the underlying distribution. The graph on the right also shows how the 90% confidence interval for the mean narrows as more samples are taken. The user can also explore different groups of sample points by changing the scenario. Different populations can be selected from the drop down menu.
A4: Scenario | D4: Estimate of True Population Distribution and Its Mean | K4: 90% Confidence Interval for Estimate of Mean as Samples Increase
A5: Different scenarios will randomly changes the samples to show how different random samples could change the estimates. | D5: The chart below shows the "true" shape of the distribution for a population (dashed line). It also shows an estimate of that true shape (dark blue) and an estimate of the true mean (light blue) based on a random sample of values from the population (green diamonds) | K5: This chart shows how the estimate of the mean of a population improves with sample size. The true mean is shown as a dashed grey line. The estimate of the mean is shown with blue lines representing upper and lower bounds of the 90% confidence interval.
B6: 1
A7: Number of Samples
A8: Enter number of samples or use slider bar below. For a given scenario, increasing the number of samples improves estimates.
B9: 2
A10: True, Hidden Distribution
A11: Population # | B11: 1
A12: Reveal Distribution? | B12: FALSE
A13: =IF(B12,OFFSET(W18,,B11-1),"") -> 
A16: Estimates Based on Samples
A17: Average of sample | B17: =AVERAGE(L26:L227) -> 81
A18: Standard Deviation of Sample | B18: =_xlfn.STDEV.S(L26:L227) -> 8.485281374 | W18: Normal | X18: Beta | Y18: Uniform | Z18: lognormal | AA18: MLB Player Batting | AB18: book ratings w/>10 reviews | AC18: Book num of pages | AD18: NJ teacher salary | AE18: age of working adults | AF18: Work hours per month
A19: Error of the Estimate of the Mean | B19: =B18/B9^0.5 -> 6 | W19: 100.5 | X19: 66.9166667 | Y19: 50.25 | Z19: 43.86670894 | AA19: 261.2139177 | AB19: 4.637817596 | AC19: 354.7810768 | AD19: 73281.171 | AE19: 38.06941754 | AF19: 201.2740661
W21: 0 | X21: 0 | Y21: 0 | Z21: 0 | AA21: 140 | AB21: 0 | AC21: 0 | AD21: 0 | AE21: 0 | AF21: 90
A22: Increments for chart | B22: =OFFSET(W23,,B11-1) -> 1 | W22: 200 | X22: 100 | Y22: 100 | Z22: 200 | AA22: 400 | AB22: 8 | AC22: 1800 | AD22: 300000 | AE22: 98 | AF22: 310
B23: Distribution curves | I23: Sample Values | N23: Running Calculations for Chart Above | T23: True Mean Plot | W23: =(W22-W21)/200 -> 1 | X23: 0.5 | Y23: 0.5 | Z23: 1 | AA23: =(AA22-AA21)/200 -> 1.3 | AB23: =(AB22-AB21)/200 -> 0.04 | AC23: 9 | AD23: 1500 | AE23: 0.49 | AF23: 1.1
A24: True Population Cumulative Distribution | B24: True Population Distribution | C24: Horizontal axis values | D24: Estimated Distribution pdf | F24: Error of the Mean Estimate pdf | I24: Y-axis Value for Samples | J24: Sample Count | K24: Random Number | L24: For Calcs | M24: For Chart | O24: Running Average | T24: Mean | U24: Count | W24: =NORMDIST(C25,100,15,1) -> 1.308392469e-11 | X24: =IFERROR(BETADIST(C25,6,3,0,100),"") -> 0 | Y24: =C25/100 -> 0 | Z24: 0 | AA24: 1.561051409e-06 | AB24: 0.0001248510013 | AC24: 2.24927649e-11 | AD24: 0.0001431941569 | AE24: 1.880110674e-18 | AF24: 4.363697002e-05 | AT24: 1 | AU24: 2 | AV24: 3 | AW24: 4 | AX24: 5 | AY24: 6 | AZ24: 7 | BA24: 8 | BB24: 9 | BC24: 10 | BD24: 11 | BE24: 12 | BF24: 13 | BG24: 14 | BH24: 15 | BI24: 16 | BJ24: 17 | BK24: 18 | BL24: 19 | BM24: 20 | BN24: 21 | BO24: 22 | BP24: 23 | BQ24: 24 | BR24: 25 | BS24: 26 | BT24: 27 | BU24: 28 | BV24: 29 | BW24: 30
A25: =OFFSET(W24,,B$11-1) -> 1.308392469e-11 | B25: =IF(B12,A25/1000,"") ->  | C25: =OFFSET(W21,,B$11-1) -> 0 | D25: =_xlfn.T.DIST((C25+B$22/2-B$17)/B$18,B$9-1,1)-_xlfn.T.DIST((C25-B$22/2-B$17)/B$18,B$9-1,1) -> 0.0004072138216 | F25: =_xlfn.T.DIST((C25+B$22/2-B$17)/B$19,B$9-1,1)-_xlfn.T.DIST((C25-B$22/2-B$17)/B$19,B$9-1,1) -> 0.0002895151083 | J25: 0 | K25: Not applicable | O25: =NA() ->  | P25: =NA() ->  | U25: 0 | W25: =NORMDIST(C26,100,15,1) -> 2.055788909e-11 | X25: =IFERROR(BETADIST(C26,6,3,0,100),"") -> 2.75221e-11 | Y25: =C26/100 -> 0.01 | Z25: =_xlfn.LOGNORM.DIST(C26,(LN(120)+LN(10))/2,(LN(120)-LN(10))/3.29,1) -> 1.342144395e-06 | AA25: 3.280644506e-06 | AB25: 0.0003148691637 | AC25: 6.74782947e-11 | AD25: 0.0003069917895 | AE25: 3.969122535e-18 | AF25: 0.0001254562888
A26: =OFFSET(W25,,B$11-1) -> 2.055788909e-11 | B26: =IF(B$12,A26-A25,"") ->  | C26: =C25+OFFSET(W$23,,B$11-1) -> 1 | D26: =_xlfn.T.DIST((C26+B$22/2-B$17)/B$18,B$9-1,1)-_xlfn.T.DIST((C26-B$22/2-B$17)/B$18,B$9-1,1) -> 0.0004173442115 | F26: =_xlfn.T.DIST((C26+B$22/2-B$17)/B$19,B$9-1,1)-_xlfn.T.DIST((C26-B$22/2-B$17)/B$19,B$9-1,1) -> 0.0002967577615 | I26: =IF(L26<>"",0,"") -> 0 | J26: =IF(B$9>J25,J25+1,"") -> 1 | K26: =IFERROR(( MOD(( MOD( MOD( 999999999999989, MOD( PM_Index*2499997 +$J26*1800451, 7450589 ) * 4658 + 7450581 ) * 383, 99991 ) * 7440893 + MOD( MOD( 999999999999989, MOD( PM_Index*2246527 +$J26*2399993, 7450987 ) * 7580 + 7560584 ) * 17669, 7440893 )) * 1343, 4294967296 ) + 0.5 ) / 4294967296,"") -> 0.1965513584 | L26: =IFERROR(VLOOKUP(K26,A$25:C$225,3),"") -> 87 | M26: =IF(L26="",NA(),L26) -> 87 | O26: =IF(K26="","",AVERAGE(L$26:L26)) -> 87 | P26: =NA() ->  | Q26: =NA() ->  | R26: =NA() ->  | S26: =NA() ->  | T26: =IF($B$12,OFFSET(W$19,,B$11-1),"") ->  | U26: 1 | W26: 3.216088292e-11 | X26: 1.7310976e-09 | Y26: 0.02 | Z26: =_xlfn.LOGNORM.DIST(C27,(LN(120)+LN(10))/2,(LN(120)-LN(10))/3.29,1) -> 7.972021754e-05 | AA26: 5.174880915e-06 | AB26: 0.0004962405508 | AC26: 1.349565894e-10 | AD26: 0.0004883023766 | AE26: 8.147146256e-18 | AF26: 0.000266107594
A27: 3.216088292e-11 | B27: =IF(B$12,A27-A26,"") ->  | C27: 2 | D27: =_xlfn.T.DIST((C27+B$22/2-B$17)/B$18,B$9-1,1)-_xlfn.T.DIST((C27-B$22/2-B$17)/B$18,B$9-1,1) -> 0.0004278558983 | F27: =_xlfn.T.DIST((C27+B$22/2-B$17)/B$19,B$9-1,1)-_xlfn.T.DIST((C27-B$22/2-B$17)/B$19,B$9-1,1) -> 0.0003042751002 | I27: 0 | J27: 2 | K27: 0.05321857578 | L27: =IFERROR(VLOOKUP(K27,A$25:C$225,3),"") -> 75 | M27: =IF(L27="",NA(),L27) -> 75 | O27: =IF(K27="","",AVERAGE(L$26:L27)) -> 81 | P27: =IFERROR(_xlfn.STDEV.S(L$26:L27)/J27^0.5,"") -> 6 | Q27: =IFERROR(TINV(0.1,J27-1)*P27,"") -> 37.88250909 | R27: =IFERROR(O27+Q27,"") -> 118.8825091 | S27: =IFERROR(O27-Q27,"") -> 43.11749091 | T27: =IF($B$12,OFFSET(W$19,,B$11-1),"") ->  | U27: 2 | W27: 5.009415788e-11 | X27: 1.93760181e-08 | Y27: 0.03 | Z27: 0.0005996384382 | AA27: 7.258533931e-06 | AB27: 0.00062678577 | AC27: 0.003540995842 | AD27: 0.0007128802629 | AE27: 1.441418184e-17 | AF27: 0.0004895522574
A28: 5.009415788e-11 | B28: =IF(B$12,A28-A27,"") ->  | C28: 3 | D28: =_xlfn.T.DIST((C28+B$22/2-B$17)/B$18,B$9-1,1)-_xlfn.T.DIST((C28-B$22/2-B$17)/B$18,B$9-1,1) -> 0.0004387681822 | F28: 0.0003120811643 | L28: =IFERROR(VLOOKUP(K28,A$25:C$225,3),"") ->  | O28: =IF(K28="","",AVERAGE(L$26:L28)) ->  | P28: =IFERROR(_xlfn.STDEV.S(L$26:L28)/J28^0.5,"") ->  | Q28: =IFERROR(TINV(0.1,J28-1)*P28,"") ->  | R28: =IFERROR(O28+Q28,"") ->  | S28: =IFERROR(O28-Q28,"") ->  | U28: 3 | W28: =NORMDIST(C29,100,15,1) -> 7.768847582e-11 | X28: 1.069613056e-07 | Y28: 0.04 | Z28: 0.002130508045 | AA28: 9.555941544e-06 | AB28: 0.0007062939246 | AC28: 0.007683553512 | AD28: 0.0008869796335 | AE28: 2.277022928e-17 | AF28: 0.0008216997301
A29: 7.768847582e-11 | C29: 4 | D29: =_xlfn.T.DIST((C29+B$22/2-B$17)/B$18,B$9-1,1)-_xlfn.T.DIST((C29-B$22/2-B$17)/B$18,B$9-1,1) -> 0.0004501015953 | F29: =_xlfn.T.DIST((C29+B$22/2-B$17)/B$19,B$9-1,1)-_xlfn.T.DIST((C29-B$22/2-B$17)/B$19,B$9-1,1) -> 0.0003201909004 | O29: =IF(K29="","",AVERAGE(L$26:L29)) ->  | P29: =IFERROR(_xlfn.STDEV.S(L$26:L29)/J29^0.5,"") ->  | U29: 4 | W29: 1.199602262e-10 | X29: 4.008203125e-07 | Y29: 0.05 | Z29: 0.005192754076 | AA29: 1.210005806e-05 | AB29: 0.0007543784318 | AC29: 0.0123858336 | AD29: 0.001076531611 | AE29: 3.321528858e-17 | AF29: 0.001283589265
A30: 1.199602262e-10 | C30: 5 | D30: 0.0004618779963 | F30: 0.0003286202329 | O30: =IF(K30="","",AVERAGE(L$26:L30)) ->  | P30: =IFERROR(_xlfn.STDEV.S(L$26:L30)/J30^0.5,"") ->  | U30: 5 | W30: 1.844292818e-10 | X30: 1.175525914e-06 | Y30: 0.06 | Z30: 0.01013452679 | AA30: 1.512055328e-05 | AB30: 0.0007887546366 | AC30: 0.01758948906 | AD30: 0.001279475848 | AE30: 4.574935974e-17 | AF30: 0.001886519722
A31: 1.844292818e-10 | C31: 6 | D31: 0.0004741206743 | F31: 0.0003373861417 | O31: =IF(K31="","",AVERAGE(L$26:L31)) ->  | P31: =IFERROR(_xlfn.STDEV.S(L$26:L31)/J31^0.5,"") ->  | U31: 6 | W31: 2.823158037e-10 | X31: 2.910977442e-06 | Y31: 0.07 | Z31: 0.01711994266 | AA31: 1.871270297e-05 | AB31: 0.0008184911082 | AC31: 0.02322551292 | AD31: 0.001499933039 | AE31: 6.037244277e-17 | AF31: 0.002637309376
A32: 2.823158037e-10 | C32: 7 | D32: 0.0004868544621 | F32: 0.000346506747 | O32: =IF(K32="","",AVERAGE(L$26:L32)) ->  | P32: =IFERROR(_xlfn.STDEV.S(L$26:L32)/J32^0.5,"") ->  | U32: 7 | W32: 4.302828474e-10 | X32: 6.368631194e-06 | Y32: 0.08 | Z32: 0.02616308392 | AA32: 2.299199286e-05 | AB32: 0.0008480166828 | AC32: 0.02925387643 | AD32: 0.001729661794 | AE32: 7.708453765e-17 | AF32: 0.003535178995
A33: 4.302828474e-10 | C33: 8 | D33: 0.0005001058605 | F33: 0.0003560014019 | O33: =IF(K33="","",AVERAGE(L$26:L33)) ->  | P33: =IFERROR(_xlfn.STDEV.S(L$26:L33)/J33^0.5,"") ->  | U33: 8 | W33: 6.52960999e-10 | X33: 1.267492099e-05 | Y33: 0.09 | Z33: 0.03717150119 | AA33: 2.799683108e-05 | AB33: 0.0008790185362 | AC33: 0.03565072511 | AD33: 0.002235477125 | AE33: 9.58856444e-17 | AF33: 0.004563569909
A34: 6.52960999e-10 | C34: 9 | D34: 0.0005139031731 | F34: 0.0003658907948 | O34: =IF(K34="","",AVERAGE(L$26:L34)) ->  | P34: =IFERROR(_xlfn.STDEV.S(L$26:L34)/J34^0.5,"") ->  | U34: 9 | W34: 9.86587645e-10 | X34: 2.341e-05 | Y34: 0.1 | Z34: 0.04998490554 | AA34: 3.389832824e-05 | AB34: 0.0009100203895 | AC34: 0.04241522867 | AD34: 0.002779408886 | AE34: 1.16775763e-16 | AF34: 0.005698325938
A35: 9.86587645e-10 | C35: 10 | D35: 0.0005282766552 | F35: 0.0003761970607 | O35: =IF(K35="","",AVERAGE(L$26:L35)) ->  | P35: =IFERROR(_xlfn.STDEV.S(L$26:L35)/J35^0.5,"") ->  | U35: 10 | W35: 1.484226592e-09 | X35: 4.070001957e-05 | Y35: 0.11 | Z35: 0.06440517018 | AA35: 4.090945127e-05 | AB35: 0.0009368043036 | AC35: 0.04957422135 | AD35: 0.003386181249 | AE35: 1.397548935e-16 | AF35: 0.006907498585
A36: 1.484226592e-09 | C36: 11 | D36: 0.0005432586767 | F36: 0.0003869439044 | O36: =IF(K36="","",AVERAGE(L$26:L36)) ->  | P36: =IFERROR(_xlfn.STDEV.S(L$26:L36)/J36^0.5,"") ->  | U36: 11 | W36: 2.2232165e-09 | X36: 6.731124572e-05 | Y36: 0.12 | Z36: 0.08021788587 | AA36: 4.929368638e-05 | AB36: 0.0009557850302 | AC36: 0.0571791675 | AD36: 0.004054764039 | AE36: 1.648230358e-16 | AF36: 0.008164983591
A37: 2.2232165e-09 | C37: 12 | D37: 0.0005588839011 | F37: 0.0003981567355 | O37: =IF(K37="","",AVERAGE(L$26:L37)) ->  | P37: =IFERROR(_xlfn.STDEV.S(L$26:L37)/J37^0.5,"") ->  | U37: 12 | W37: 3.315745978e-09 | X37: 0.0001067443984 | Y37: 0.13 | Z37: 0.09720700554 | AA37: 5.93823631e-05 | AB37: 0.0009663298783 | AC37: 0.06530321465 | AD37: 0.004841816814 | AE37: 1.9198019e-16 | AF37: 0.009449936512
A38: 3.315745978e-09 | C38: 13 | D38: 0.0005751894817 | F38: 0.000409862817 | O38: =IF(K38="","",AVERAGE(L$26:L38)) ->  | P38: =IFERROR(_xlfn.STDEV.S(L$26:L38)/J38^0.5,"") ->  | U38: 13 | W38: 4.923791473e-09 | X38: 0.0001633276831 | Y38: 0.14 | Z38: 0.1151642704 | AA38: 7.155947153e-05 | AB38: 0.0009707587145 | AC38: 0.07403550159 | AD38: 0.005739098186 | AE38: 2.21226356e-16 | AF38: 0.01074482464
A39: 4.923791473e-09 | C39: 14 | D39: 0.0005922152786 | F39: 0.00042209143 | O39: =IF(K39="","",AVERAGE(L$26:L39)) ->  | P39: =IFERROR(_xlfn.STDEV.S(L$26:L39)/J39^0.5,"") ->  | U39: 14 | W39: 7.280110074e-09 | X39: 0.0002423070703 | Y39: 0.15 | Z39: 0.1338948772 | AA39: 8.629705967e-05 | AB39: 0.0009720240962 | AC39: 0.0834732652 | AD39: 0.006813569449 | AE39: 2.525615339e-16 | AF39: 0.01203464775
A40: 7.280110074e-09 | C40: 15 | D40: 0.0006100040973 | F40: 0.0004348740545 | O40: =IF(K40="","",AVERAGE(L$26:L40)) ->  | P40: =IFERROR(_xlfn.STDEV.S(L$26:L40)/J40^0.5,"") ->  | U40: 15 | W40: 1.071759026e-08 | X40: 0.0003499324604 | Y40: 0.16 | Z40: 0.1532205287 | AA40: 0.0001041624513 | AB40: 0.0009724458902 | AC40: 0.09371324252 | AD40: 0.007768540553 | AE40: 2.859857237e-16 | AF40: 0.01331667856
A41: 1.071759026e-08 | C41: 16 | D41: 0.000628601952 | F41: 0.0004482445707 | O41: =IF(K41="","",AVERAGE(L$26:L41)) ->  | P41: =IFERROR(_xlfn.STDEV.S(L$26:L41)/J41^0.5,"") ->  | U41: 16 | W41: 1.571007685e-08 | X41: 0.0004935384596 | Y41: 0.17 | Z41: 0.1729807147 | AA41: 0.0001258429178 | AB41: 0.0009739221689 | AC41: 0.10484295 | AD41: 0.008838891121 | AE41: 3.214989253e-16 | AF41: 0.01459344955
A42: 1.571007685e-08 | C42: 17 | D42: 0.0006480583568 | F42: 0.0004622394808 | O42: =IF(K42="","",AVERAGE(L$26:L42)) ->  | P42: =IFERROR(_xlfn.STDEV.S(L$26:L42)/J42^0.5,"") ->  | U42: 17 | W42: 2.292886212e-08 | X42: 0.0006816185738 | Y42: 0.18 | Z42: 0.1930328332 | AA42: 0.000152117988 | AB42: 0.0009798272838 | AC42: 0.1169333011 | AD42: 0.01000401768 | AE42: 3.591011388e-16 | AF42: 0.0158694413
A43: 2.292886212e-08 | C43: 18 | D43: 0.0006684266481 | F43: 0.0004768981555 | O43: =IF(K43="","",AVERAGE(L$26:L43)) ->  | P43: =IFERROR(_xlfn.STDEV.S(L$26:L43)/J43^0.5,"") ->  | U43: 18 | W43: 3.332044849e-08 | X43: 0.0009238917157 | Y43: 0.19 | Z43: 0.2132515835 | AA43: 0.0001838895612 | AB43: 0.0009960663499 | AC43: 0.1300335368 | AD43: 0.01124949779 | AE43: 3.987923642e-16 | AF43: 0.01713549786
A44: 3.332044849e-08 | C44: 19 | D44: 0.0006897643417 | F44: 0.0004922631083 | O44: =IF(K44="","",AVERAGE(L$26:L44)) ->  | P44: =IFERROR(_xlfn.STDEV.S(L$26:L44)/J44^0.5,"") ->  | U44: 19 | W44: 4.821303365e-08 | X44: 0.00123136 | Y44: 0.2 | Z44: 0.2335279253 | AA44: 0.0002222019585 | AB44: 0.001030231658 | AC44: 0.1441687927 | AD44: 0.01248982703 | AE44: 4.405726014e-16 | AF44: 0.01838499574
A45: 4.821303365e-08 | C45: 20 | D45: 0.000712133529 | F45: 0.0005083803003 | O45: =IF(K45="","",AVERAGE(L$26:L45)) ->  | P45: =IFERROR(_xlfn.STDEV.S(L$26:L45)/J45^0.5,"") ->  | U45: 20 | W45: 6.946156146e-08 | X45: 0.001616356893 | Y45: 0.21 | Z45: 0.2537678077 | AA45: 0.0002682677804 | AB45: 0.001087595631 | AC45: 0.1593403824 | AD45: 0.01371161315 | AE45: 4.844418504e-16 | AF45: 0.01960897379
A46: 6.946156146e-08 | C46: 21 | D46: 0.0007356013183 | F46: 0.0005252994797 | O46: =IF(K46="","",AVERAGE(L$26:L46)) ->  | P46: =IFERROR(_xlfn.STDEV.S(L$26:L46)/J46^0.5,"") ->  | U46: 21 | W46: 9.964426317e-08 | X46: 0.00209258486 | Y46: 0.22 | Z46: 0.273890801 | AA46: 0.0003234670814 | AB46: 0.001167314683 | AC46: 0.1755285646 | AD46: 0.01488292075 | AE46: 5.304001114e-16 | AF46: 0.02080587354
A47: 9.964426317e-08 | C47: 22 | D47: 0.0007602403245 | F47: 0.0005430745615 | O47: =IF(K47="","",AVERAGE(L$26:L47)) ->  | P47: =IFERROR(_xlfn.STDEV.S(L$26:L47)/J47^0.5,"") ->  | U47: 22 | W47: 1.423275535e-07 | X47: 0.002675141747 | Y47: 0.23 | Z47: 0.29382872 | AA47: 0.0003893921214 | AB47: 0.001261374728 | AC47: 0.1926975141 | AD47: 0.01605010765 | AE47: 5.784473842e-16 | AF47: 0.02197140921
A48: 1.423275535e-07 | C48: 23 | D48: 0.0007861292169 | F48: 0.0005617640516 | O48: =IF(K48="","",AVERAGE(L$26:L48)) ->  | P48: =IFERROR(_xlfn.STDEV.S(L$26:L48)/J48^0.5,"") ->  | U48: 23 | W48: 2.02421148e-07 | X48: 0.003380535204 | Y48: 0.24 | Z48: 0.3135242913 | AA48: 0.0004678213809 | AB48: 0.001359441815 | AC48: 0.2108018897 | AD48: 0.01719669108 | AE48: 6.285836688e-16 | AF48: 0.02310285351
A49: 2.02421148e-07 | C49: 24 | D49: 0.0008133533299 | F49: 0.0005814315223 | O49: =IF(K49="","",AVERAGE(L$26:L49)) ->  | P49: =IFERROR(_xlfn.STDEV.S(L$26:L49)/J49^0.5,"") ->  | U49: 24 | W49: 2.866515719e-07 | X49: 0.00422668457 | Y49: 0.25 | Z49: 0.3329298993 | AA49: 0.0005607874091 | AB49: 0.001455399932 | AC49: 0.2297934692 | AD49: 0.01850398162 | AE49: 6.808089653e-16 | AF49: 0.02421540143
A50: 2.866515719e-07 | C50: 25 | D50: 0.000842005346 | F50: 0.0006021461461 | O50: =IF(K50="","",AVERAGE(L$26:L50)) ->  | P50: =IFERROR(_xlfn.STDEV.S(L$26:L50)/J50^0.5,"") ->  | U50: 25 | W50: 4.041901152e-07 | X50: 0.005232909679 | Y50: 0.26 | Z50: 0.3520064258 | AA50: 0.0006705811546 | AB50: 0.001551147153 | AC50: 0.249626906 | AD50: 0.01996991893 | AE50: 7.351232737e-16 | AF50: 0.02535054708
A51: 4.041901152e-07 | C51: 26 | D51: 0.0008721860625 | F51: 0.0006239832952 | O51: =IF(K51="","",AVERAGE(L$26:L51)) ->  | P51: =IFERROR(_xlfn.STDEV.S(L$26:L51)/J51^0.5,"") ->  | U51: 26 | W51: 5.674810724e-07 | X51: 0.006419906181 | Y51: 0.27 | Z51: 0.3707221923 | AA51: 0.0007997909416 | AB51: 0.001653432179 | AC51: 0.2702637938 | AD51: 0.02207971485 | AE51: 7.915265939e-16 | AF51: 0.02655309626
A52: 5.674810724e-07 | C52: 27 | D52: 0.0009040052504 | F52: 0.0006470252178 | O52: =IF(K52="","",AVERAGE(L$26:L52)) ->  | P52: =IFERROR(_xlfn.STDEV.S(L$26:L52)/J52^0.5,"") ->  | U52: 27 | W52: 7.93328152e-07 | X52: 0.007809707023 | Y52: 0.28 | Z52: 0.3890520055 | AA52: 0.0009512793733 | AB52: 0.001767105642 | AC52: 0.2916745425 | AD52: 0.02516096465 | AE52: 8.50018926e-16 | AF52: 0.02787915365
A53: 7.93328152e-07 | C53: 28 | D53: 0.0009375826217 | F53: 0.0006713618016 | O53: =IF(K53="","",AVERAGE(L$26:L53)) ->  | P53: =IFERROR(_xlfn.STDEV.S(L$26:L53)/J53^0.5,"") ->  | U53: 28 | W53: 1.104311644e-06 | X53: 0.009425629827 | Y53: 0.29 | Z53: 0.4069763011 | AA53: 0.001128284381 | AB53: 0.001890691261 | AC53: 0.3138380179 | AD53: 0.03020881623 | AE53: 9.1060027e-16 | AF53: 0.02938131738
A54: 1.104311644e-06 | C54: 29 | D54: 0.0009730489184 | F54: 0.0006970914368 | O54: =IF(K54="","",AVERAGE(L$26:L54)) ->  | P54: =IFERROR(_xlfn.STDEV.S(L$26:L54)/J54^0.5,"") ->  | U54: 29 | W54: 1.530626737e-06 | X54: 0.01129221 | Y54: 0.3 | Z54: 0.4244803826 | AA54: 0.001334387467 | AB54: 0.002017651232 | AC54: 0.3367386003 | AD54: 0.03814630528 | AE54: 9.732706258e-16 | AF54: 0.03112757541
A55: 1.530626737e-06 | C55: 30 | D55: 0.001010547142 | F55: 0.0007243219951 | O55: =IF(K55="","",AVERAGE(L$26:L55)) ->  | P55: =IFERROR(_xlfn.STDEV.S(L$26:L55)/J55^0.5,"") ->  | U55: 30 | W55: 2.112454703e-06 | X55: 0.01343511947 | Y55: 0.31 | Z55: 0.4415537469 | AA55: 0.001573620528 | AB55: 0.002140815058 | AC55: 0.3603607735 | AD55: 0.05115740025 | AE55: 1.038029993e-15 | AF55: 0.03319292878
A56: 2.112454703e-06 | C56: 31 | D56: 0.001050233945 | F56: 0.0007531719424 | O56: =IF(K56="","",AVERAGE(L$26:L56)) ->  | P56: =IFERROR(_xlfn.STDEV.S(L$26:L56)/J56^0.5,"") ->  | U56: 31 | W56: 2.903004061e-06 | X56: 0.01588107107 | Y56: 0.32 | Z56: 0.4581894888 | AA56: 0.001850434095 | AB56: 0.002255753902 | AC56: 0.3846823355 | AD56: 0.06969434744 | AE56: 1.104878373e-15 | AF56: 0.03566309298
A57: 2.903004061e-06 | C57: 32 | D57: 0.001092281204 | F57: 0.0007837716045 | O57: =IF(K57="","",AVERAGE(L$26:L57)) ->  | P57: =IFERROR(_xlfn.STDEV.S(L$26:L57)/J57^0.5,"") ->  | U57: 32 | W57: 3.972388603e-06 | X57: 0.0186577086 | Y57: 0.33 | Z57: 0.4743837778 | AA57: 0.002169828701 | AB57: 0.002360780589 | AC57: 0.4096668737 | AD57: 0.09456274273 | AE57: 1.173815764e-15 | AF57: 0.03860430268
A58: 3.972388603e-06 | C58: =C57+OFFSET(W$23,,B$11-1) -> 33 | D58: 0.001136877813 | F58: 0.000816264614 | I58: =IF(L58<>"",0,"") ->  | J58: =IF(B$9>J57,J57+1,"") ->  | K58: =IFERROR(( MOD(( MOD( MOD( 999999999999989, MOD( PM_Index*2499997 +$J58*1800451, 7450589 ) * 4658 + 7450581 ) * 383, 99991 ) * 7440893 + MOD( MOD( 999999999999989, MOD( PM_Index*2246527 +$J58*2399993, 7450987 ) * 7580 + 7560584 ) * 17669, 7440893 )) * 1343, 4294967296 ) + 0.5 ) / 4294967296,"") ->  | M58: =IF(L58="",NA(),L58) ->  | O58: =IF(K58="","",AVERAGE(L$26:L58)) ->  | P58: =IFERROR(_xlfn.STDEV.S(L$26:L58)/J58^0.5,"") ->  | U58: 33 | W58: 5.412543908e-06 | X58: 0.02179348278 | Y58: 0.34 | Z58: 0.4901353993 | AA58: 0.002537324565 | AB58: 0.0024571605 | AC58: 0.4352566773 | AD58: 0.1247993737 | AE58: 0.003973684189 | AF58: 0.0420808445
A59: 5.412543908e-06 | C59: 34 | D59: 0.001184231716 | F59: 0.000850809564 | O59: =IF(K59="","",AVERAGE(L$26:L59)) ->  | P59: =IFERROR(_xlfn.STDEV.S(L$26:L59)/J59^0.5,"") ->  | U59: 34 | W59: 7.343423837e-06 | X59: 0.02531751332 | Y59: 0.35 | Z59: 0.5054453532 | AA59: 0.002959058312 | AB59: 0.002548478885 | AC59: 0.4613670868 | AD59: 0.1598469162 | AE59: 0.009558180278 | AF59: 0.04614336849
A60: 7.343423837e-06 | C60: 35 | D60: 0.001234572234 | F60: 0.0008875819064 | O60: =IF(K60="","",AVERAGE(L$26:L60)) ->  | P60: =IFERROR(_xlfn.STDEV.S(L$26:L60)/J60^0.5,"") ->  | U60: 35 | W60: 9.920763886e-06 | X60: 0.02925943745 | Y60: 0.36 | Z60: 0.5203165038 | AA60: 0.003441759872 | AB60: 0.002641273548 | AC60: 0.4878827329 | AD60: 0.1981632001 | AE60: 0.01688999939 | AF60: 0.05084291431
A61: 9.920763886e-06 | C61: 36 | D61: 0.001288152714 | F61: 0.0009267761351 | O61: =IF(K61="","",AVERAGE(L$26:L61)) ->  | P61: =IFERROR(_xlfn.STDEV.S(L$26:L61)/J61^0.5,"") ->  | U61: 36 | W61: 1.334574902e-05 | X61: 0.03364924528 | Y61: 0.37 | Z61: 0.534753275 | AA61: 0.00399289107 | AB61: 0.002741660501 | AC61: 0.5146565883 | AD61: 0.2387365949 | AE61: 0.02549327075 | AF61: 0.056204807
A62: 1.334574902e-05 | C62: 37 | D62: 0.001345253576 | F62: 0.0009686083034 | O62: =IF(K62="","",AVERAGE(L$26:L62)) ->  | P62: =IFERROR(_xlfn.STDEV.S(L$26:L62)/J62^0.5,"") ->  | U62: 37 | W62: 1.78769797e-05 | X62: 0.0385171026 | Y62: 0.38 | Z62: 0.548761385 | AA62: 0.004620554674 | AB62: 0.002852592303 | AC62: 0.5415122875 | AD62: 0.2786651008 | AE62: 0.03517110982 | AF62: 0.06223820253
A63: 1.78769797e-05 | C63: 38 | D63: 0.001406185801 | F63: 0.001013318936 | O63: =IF(K63="","",AVERAGE(L$26:L63)) ->  | P63: =IFERROR(_xlfn.STDEV.S(L$26:L63)/J63^0.5,"") ->  | U63: 38 | W63: 2.384519071e-05 | X63: 0.04389316155 | Y63: 0.39 | Z63: 0.5623476164 | AA63: 0.005333706604 | AB63: 0.002971116396 | AC63: 0.5682495392 | AD63: 0.3171410617 | AE63: 0.04568980034 | AF63: 0.06885816465
A64: 2.384519071e-05 | C64: 39 | D64: 0.001471294955 | F64: 0.001061176409 | O64: =IF(K64="","",AVERAGE(L$26:L64)) ->  | P64: =IFERROR(_xlfn.STDEV.S(L$26:L64)/J64^0.5,"") ->  | U64: 39 | W64: 3.167124183e-05 | X64: 0.04980736 | Y64: 0.4 | Z64: 0.5755196174 | AA64: 0.006141998581 | AB64: 0.003091116767 | AC64: 0.5946525661 | AD64: 0.3529499026 | AE64: 0.05679288226 | AF64: 0.07597975712
A65: 3.167124183e-05 | C65: 40 | D65: 0.001540965824 | F65: 0.001112480874 | O65: =IF(K65="","",AVERAGE(L$26:L65)) ->  | P65: =IFERROR(_xlfn.STDEV.S(L$26:L65)/J65^0.5,"") ->  | U65: 40 | W65: 4.188796689e-05 | X65: 0.05628921027 | Y65: 0.41 | Z65: 0.5882857294 | AA65: 0.007055945584 | AB65: 0.003209219065 | AC65: 0.620500541 | AD65: 0.3862337876 | AE65: 0.06834340924 | AF65: 0.08349875771
A66: 4.188796689e-05 | C66: 41 | D66: 0.001615627788 | F66: 0.001167568853 | O66: =IF(K66="","",AVERAGE(L$26:L66)) ->  | P66: =IFERROR(_xlfn.STDEV.S(L$26:L66)/J66^0.5,"") ->  | U66: 41 | W66: 5.516653503e-05 | X66: 0.06336757807 | Y66: 0.42 | Z66: 0.6006548389 | AA66: 0.008086816133 | AB66: 0.003330484818 | AC66: 0.6455788637 | AD66: 0.4172100833 | AE66: 0.08023391646 | AF66: 0.09133938614
A67: 5.516653503e-05 | C67: 42 | D67: 0.00169576104 | F67: 0.001226818603 | O67: =IF(K67="","",AVERAGE(L$26:L67)) ->  | P67: =IFERROR(_xlfn.STDEV.S(L$26:L67)/J67^0.5,"") ->  | U67: 42 | W67: 7.234804393e-05 | X67: 0.07107045262 | Y67: 0.43 | Z67: 0.6126362495 | AA67: 0.009246877703 | AB67: 0.003469465916 | AC67: 0.6696904305 | AD67: 0.4460085916 | AE67: 0.09238962824 | AF67: 0.09941261521
A68: 7.234804393e-05 | C68: 43 | D68: 0.001781903833 | F68: 0.001290656429 | O68: =IF(K68="","",AVERAGE(L$26:L68)) ->  | P68: =IFERROR(_xlfn.STDEV.S(L$26:L68)/J68^0.5,"") ->  | U68: 43 | W68: 9.44811248e-05 | X68: 0.07942470894 | Y68: 0.44 | Z68: 0.6242395726 | AA68: 0.01054912388 | AB68: 0.003643455909 | AC68: 0.6926657035 | AD68: 0.47261386 | AE68: 0.1047481805 | AF68: 0.1076327294
A69: 9.44811248e-05 | C69: 44 | D69: 0.00187466092 | F69: 0.001359564124 | O69: =IF(K69="","",AVERAGE(L$26:L69)) ->  | P69: =IFERROR(_xlfn.STDEV.S(L$26:L69)/J69^0.5,"") ->  | U69: 44 | W69: 0.00012286639 | X69: 0.08845586332 | Y69: 0.45 | Z69: 0.6354746333 | AA69: 0.01200752412 | AB69: 0.003865741307 | AC69: 0.7143707138 | AD69: 0.4975172812 | AE69: 0.1172544304 | AF69: 0.1159216109
A70: 0.00012286639 | C70: 45 | D70: 0.001974713433 | F70: 0.001434087776 | O70: =IF(K70="","",AVERAGE(L$26:L70)) ->  | P70: =IFERROR(_xlfn.STDEV.S(L$26:L70)/J70^0.5,"") ->  | U70: 45 | W70: 0.0001591085902 | X70: 0.09818782331 | Y70: 0.46 | Z70: 0.6463513906 | AA70: 0.01363671479 | AB70: 0.004143070812 | AC70: 0.7347123322 | AD70: 0.520853808 | AE70: 0.1298552661 | AF70: 0.1242987403
A71: 0.0001591085902 | C71: 46 | D71: 0.002082830461 | F71: 0.001514848224 | O71: =IF(K71="","",AVERAGE(L$26:L71)) ->  | P71: =IFERROR(_xlfn.STDEV.S(L$26:L71)/J71^0.5,"") ->  | U71: 46 | W71: 0.0002051773657 | X71: 0.1086426334 | Y71: 0.47 | Z71: 0.656879869 | AA71: 0.01545234709 | AB71: 0.004481349538 | AC71: 0.7536400803 | AD71: 0.5428480185 | AE71: 0.1425054741 | AF71: 0.1327861309
A72: 0.0002051773657 | C72: 47 | D72: 0.002199882668 | F72: 0.00160255354 | O72: =IF(K72="","",AVERAGE(L$26:L72)) ->  | P72: =IFERROR(_xlfn.STDEV.S(L$26:L72)/J72^0.5,"") ->  | U72: 47 | W72: 0.0002634774656 | X72: 0.1198402176 | Y72: 0.48 | Z72: 0.6670701007 | AA72: 0.01747076516 | AB72: 0.004889013365 | AC72: 0.7711446365 | AD72: 0.5639985165 | AE72: 0.1551736063 | AF72: 0.1414270302
A73: 0.0002634774656 | C73: 48 | D73: 0.002326858357 | F73: 0.00169801396 | O73: =IF(K73="","",AVERAGE(L$26:L73)) ->  | P73: =IFERROR(_xlfn.STDEV.S(L$26:L73)/J73^0.5,"") ->  | U73: 48 | W73: 0.0003369292657 | X73: 0.1317981209 | Y73: 0.49 | Z73: 0.6769320773 | AA73: 0.01970923698 | AB73: 0.005370912922 | AC73: 0.7872535642 | AD73: 0.5842434919 | AE73: 0.1678424961 | AF73: 0.1501857883
A74: 0.0003369292657 | C74: 49 | D74: 0.002464882465 | F74: 0.001802159859 | O74: =IF(K74="","",AVERAGE(L$26:L74)) ->  | P74: =IFERROR(_xlfn.STDEV.S(L$26:L74)/J74^0.5,"") ->  | U74: 49 | W74: 0.0004290603332 | X74: 0.14453125 | Y74: 0.5 | Z74: 0.6864757087 | AA74: 0.02218554305 | AB74: 0.005918401435 | AC74: 0.8020249921 | AD74: 0.6040578546 | AE74: 0.180509774 | AF74: 0.1590380542
A75: 0.0004290603332 | C75: 50 | D75: 0.002615239094 | F75: 0.001916063456 | O75: =IF(K75="","",AVERAGE(L$26:L75)) ->  | P75: =IFERROR(_xlfn.STDEV.S(L$26:L75)/J75^0.5,"") ->  | U75: 50 | W75: 0.0005441086525 | X75: 0.1580516167 | Y75: 0.51 | Z75: 0.6957107891 | AA75: 0.0249181885 | AB75: 0.006506382164 | AC75: 0.8155400099 | AD75: 0.6237825921 | AE75: 0.1931855788 | AF75: 0.1679678536
A76: 0.0005441086525 | C76: 51 | D76: 0.002779398307 | F76: 0.002040965155 | O76: =IF(K76="","",AVERAGE(L$26:L76)) ->  | P76: =IFERROR(_xlfn.STDEV.S(L$26:L76)/J76^0.5,"") ->  | U76: 51 | W76: 0.0006871379379 | X76: 0.1723680833 | Y76: 0.52 | Z76: 0.7046469691 | AA76: 0.02792600474 | AB76: 0.007110180165 | AC76: 0.8278944398 | AD76: 0.6436051962 | AE76: 0.2058902688 | AF76: 0.1769773294
A77: 0.0006871379379 | C77: 52 | D77: 0.00295904809 | F77: 0.002178305678 | O77: =IF(K77="","",AVERAGE(L$26:L77)) ->  | P77: =IFERROR(_xlfn.STDEV.S(L$26:L77)/J77^0.5,"") ->  | U77: 52 | W77: 0.0008641652091 | X77: 0.1874861144 | Y77: 0.53 | Z77: 0.7132937325 | AA77: 0.03122851029 | AB77: 0.007720937766 | AC77: 0.8391906452 | AD77: 0.6636441368 | AE77: 0.2186469744 | AF77: 0.1860431048
A78: 0.0008641652091 | C78: 53 | D78: 0.003156132557 | F78: 0.002329765432 | O78: =IF(K78="","",AVERAGE(L$26:L78)) ->  | P78: =IFERROR(_xlfn.STDEV.S(L$26:L78)/J78^0.5,"") ->  | U78: 53 | W78: 0.001082300481 | X78: 0.2034075343 | Y78: 0.54 | Z78: 0.721660378 | AA78: 0.03484532331 | AB78: 0.008352785063 | AC78: 0.8495304567 | AD78: 0.6839395906 | AE78: 0.231474152 | AF78: 0.1951334259
A79: 0.001082300481 | C79: 54 | D79: 0.003372897733 | F79: 0.002497313019 | O79: =IF(K79="","",AVERAGE(L$26:L79)) ->  | P79: =IFERROR(_xlfn.STDEV.S(L$26:L79)/J79^0.5,"") ->  | U79: 54 | W79: 0.001349898032 | X79: 0.2201302946 | Y79: 0.55 | Z79: 0.7297560042 | AA79: 0.03879655706 | AB79: 0.009025968165 | AC79: 0.8590098387 | AD79: 0.7042494669 | AE79: 0.2443846724 | AF79: 0.2042134222
A80: 0.001349898032 | C80: 55 | D80: 0.003611946536 | F80: 0.002683265302 | O80: =IF(K80="","",AVERAGE(L$26:L80)) ->  | P80: =IFERROR(_xlfn.STDEV.S(L$26:L80)/J80^0.5,"") ->  | U80: 55 | W80: 0.001676718227 | X80: 0.2376482513 | Y80: 0.56 | Z80: 0.7375894982 | AA80: 0.04310220792 | AB80: 0.009756093446 | AC80: 0.8677155235 | AD80: 0.7247643477 | AE80: 0.2573849108 | AF80: 0.2133193279
A81: 0.001676718227 | C81: 56 | D81: 0.00387630489 | F81: 0.002890362203 | O81: =IF(K81="","",AVERAGE(L$26:L81)) ->  | P81: =IFERROR(_xlfn.STDEV.S(L$26:L81)/J81^0.5,"") ->  | U81: 56 | W81: 0.002074098364 | X81: 0.2559509562 | Y81: 0.57 | Z81: 0.7451695271 | AA81: 0.0477825292 | AB81: 0.01054632436 | AC81: 0.8757232535 | AD81: 0.7450464093 | AE81: 0.270475399 | AF81: 0.2224809488
A82: 0.002074098364 | C82: 57 | D82: 0.004169501304 | F82: 0.003121860369 | O82: =IF(K82="","",AVERAGE(L$26:L82)) ->  | P82: =IFERROR(_xlfn.STDEV.S(L$26:L82)/J82^0.5,"") ->  | U82: 57 | W82: 0.00255513033 | X82: 0.2750234624 | Y82: 0.58 | Z82: 0.7525045314 | AA82: 0.05285716791 | AB82: 0.01139518463 | AC82: 0.8830974553 | AD82: 0.7644857888 | AE82: 0.2836514786 | AF82: 0.2317160122
A83: 0.00255513033 | C83: 58 | D83: 0.004495662682 | F83: 0.003381651111 | O83: =IF(K83="","",AVERAGE(L$26:L83)) ->  | P83: =IFERROR(_xlfn.STDEV.S(L$26:L83)/J83^0.5,"") ->  | U83: 58 | W83: 0.003134842261 | X83: 0.2948461482 | Y83: 0.59 | Z83: 0.7596027215 | AA83: 0.05834573208 | AB83: 0.01229655825 | AC83: 0.889892199 | AD83: 0.7831968353 | AE83: 0.2969063636 | AF83: 0.2409584783
A84: 0.003134842261 | C84: 59 | D84: 0.004859629508 | F84: 0.003674409784 | O84: =IF(K84="","",AVERAGE(L$26:L84)) ->  | P84: =IFERROR(_xlfn.STDEV.S(L$26:L84)/J84^0.5,"") ->  | U84: 59 | W84: 0.003830380568 | X84: 0.31539456 | Y84: 0.6 | Z84: 0.7664720747 | AA84: 0.06426698671 | AB84: 0.01324960162 | AC84: 0.8961533033 | AD84: 0.800841652 | AE84: 0.3102342029 | AF84: 0.2501263329
A85: 0.003830380568 | C85: 60 | D85: 0.005267093969 | F85: 0.004005786039 | O85: =IF(K85="","",AVERAGE(L$26:L85)) ->  | P85: =IFERROR(_xlfn.STDEV.S(L$26:L85)/J85^0.5,"") ->  | U85: 60 | W85: 0.004661188024 | X85: 0.3366392781 | Y85: 0.61 | Z85: 0.7731203343 | AA85: 0.07063941096 | AB85: 0.01426886663 | AC85: 0.9019208135 | AD85: 0.8175345881 | AE85: 0.3236297094 | AF85: 0.2591422374
A86: 0.004661188024 | C86: 61 | D86: 0.005724764663 | F86: 0.00438264746 | O86: =IF(K86="","",AVERAGE(L$26:L86)) ->  | P86: =IFERROR(_xlfn.STDEV.S(L$26:L86)/J86^0.5,"") ->  | U86: 61 | W86: 0.005649172756 | X86: 0.3585458071 | Y86: 0.62 | Z86: 0.7795550107 | AA86: 0.07747992205 | AB86: 0.0153952673 | AC86: 0.9072311886 | AD86: 0.8332292858 | AE86: 0.3370877895 | AF86: 0.2679311907
A87: 0.005649172756 | C87: 62 | D87: 0.006240561264 | F87: 0.004813393173 | O87: =IF(K87="","",AVERAGE(L$26:L87)) ->  | P87: =IFERROR(_xlfn.STDEV.S(L$26:L87)/J87^0.5,"") ->  | U87: 62 | W87: 0.00681886227 | X87: 0.3810744936 | Y87: 0.63 | Z87: 0.7857833818 | AA87: 0.08480453786 | AB87: 0.01667773173 | AC87: 0.9121187628 | AD87: 0.8476609904 | AE87: 0.3506042926 | AF87: 0.276407867
A88: 0.00681886227 | C88: 63 | D88: 0.006823841243 | F88: 0.005308359311 | O88: =IF(K88="","",AVERAGE(L$26:L88)) ->  | P88: =IFERROR(_xlfn.STDEV.S(L$26:L88)/J88^0.5,"") ->  | U88: 63 | W88: 0.008197535925 | X88: 0.4041804744 | Y88: 0.64 | Z88: 0.7918124962 | AA88: 0.0926274227 | AB88: 0.01813777139 | AC88: 0.9166167095 | AD88: 0.8611830516 | AE88: 0.3641767606 | AF88: 0.2844933689
A89: =OFFSET(W88,,B$11-1) -> 0.008197535925 | C89: 64 | D89: =_xlfn.T.DIST((C89+B$22/2-B$17)/B$18,B$9-1,1)-_xlfn.T.DIST((C89-B$22/2-B$17)/B$18,B$9-1,1) -> 0.007485657701 | F89: =_xlfn.T.DIST((C89+B$22/2-B$17)/B$19,B$9-1,1)-_xlfn.T.DIST((C89-B$22/2-B$17)/B$19,B$9-1,1) -> 0.005880345032 | O89: =IF(K89="","",AVERAGE(L$26:L89)) ->  | P89: =IFERROR(_xlfn.STDEV.S(L$26:L89)/J89^0.5,"") ->  | U89: 64 | W89: =NORMDIST(C90,100,15,1) -> 0.009815328629 | X89: =IFERROR(BETADIST(C90,6,3,0,100),"") -> 0.4278136571 | Y89: =C90/100 -> 0.65 | Z89: 0.7976491759 | AA89: 0.1009615846 | AB89: 0.01974311906 | AC89: 0.9207575629 | AD89: 0.8742508061 | AE89: 0.3778019698 | AF89: 0.2921313972
A90: 0.009815328629 | C90: =C89+OFFSET(W$23,,B$11-1) -> 65 | D90: 0.008239041159 | F90: 0.006545296083 | I90: =IF(L90<>"",0,"") ->  | J90: =IF(B$9>J89,J89+1,"") ->  | K90: =IFERROR(( MOD(( MOD( MOD( 999999999999989, MOD( PM_Index*2499997 +$J90*1800451, 7450589 ) * 4658 + 7450581 ) * 383, 99991 ) * 7440893 + MOD( MOD( 999999999999989, MOD( PM_Index*2246527 +$J90*2399993, 7450987 ) * 7580 + 7560584 ) * 17669, 7440893 )) * 1343, 4294967296 ) + 0.5 ) / 4294967296,"") ->  | M90: =IF(L90="",NA(),L90) ->  | O90: =IF(K90="","",AVERAGE(L$26:L90)) ->  | P90: =IFERROR(_xlfn.STDEV.S(L$26:L90)/J90^0.5,"") ->  | U90: 65 | W90: 0.01170529808 | X90: 0.4519187371 | Y90: 0.66 | Z90: =_xlfn.LOGNORM.DIST(C91,(LN(120)+LN(10))/2,(LN(120)-LN(10))/3.29,1) -> 0.8033000198 | AA90: 0.1098179586 | AB90: 0.02142544413 | AC90: 0.924573281 | AD90: 0.8862389385 | AE90: 0.3914734724 | AF90: 0.2993679263
A91: 0.01170529808 | B91: =IF(B$12,A91-A90,"") ->  | C91: 66 | D91: 0.009099286246 | F91: 0.007323192113 | L91: =IFERROR(VLOOKUP(K91,A$25:C$225,3),"") ->  | O91: =IF(K91="","",AVERAGE(L$26:L91)) ->  | P91: =IFERROR(_xlfn.STDEV.S(L$26:L91)/J91^0.5,"") ->  | T91: =IF($B$12,OFFSET(W$19,,B$11-1),"") ->  | U91: 66 | W91: 0.01390344751 | X91: 0.476435253 | Y91: 0.67 | Z91: 0.8087714085 | AA91: 0.119206019 | AB91: 0.02312864799 | AC91: 0.9280947239 | AD91: 0.8971968971 | AE91: 0.4051811459 | AF91: 0.3062734768
A92: 0.01390344751 | C92: 67 | D92: 0.01008420274 | F92: 0.008239192097 | O92: =IF(K92="","",AVERAGE(L$26:L92)) ->  | P92: =IFERROR(_xlfn.STDEV.S(L$26:L92)/J92^0.5,"") ->  | Q92: =IFERROR(TINV(0.1,J92-1)*P92,"") ->  | R92: =IFERROR(O92+Q92,"") ->  | S92: =IFERROR(O92-Q92,"") ->  | U92: 67 | W92: 0.01644869582 | X92: 0.5012976839 | Y92: 0.68 | Z92: 0.8140695082 | AA92: 0.1291325648 | AB92: 0.02485526142 | AC92: 0.9313509545 | AD92: 0.907332777 | AE92: 0.4189107412 | AF92: 0.3129331797
A93: 0.01644869582 | C93: 68 | D93: 0.0112142529 | F93: 0.00932509361 | O93: =IF(K93="","",AVERAGE(L$26:L93)) ->  | P93: =IFERROR(_xlfn.STDEV.S(L$26:L93)/J93^0.5,"") ->  | U93: 68 | W93: 0.01938278709 | X93: 0.5264355913 | Y93: 0.69 | Z93: 0.8192002759 | AA93: 0.1396025851 | AB93: 0.02666665542 | AC93: 0.934368706 | AD93: 0.9164024271 | AE93: 0.4326427946 | AF93: 0.3193959319
A94: 0.01938278709 | C94: 69 | D94: 0.01251243402 | F94: 0.01062114307 | O94: =IF(K94="","",AVERAGE(L$26:L94)) ->  | P94: =IFERROR(_xlfn.STDEV.S(L$26:L94)/J94^0.5,"") ->  | U94: 69 | W94: 0.02275013195 | X94: 0.55177381 | Y94: 0.7 | Z94: 0.8241694647 | AA94: 0.1506180201 | AB94: 0.02864845417 | AC94: 0.9371723326 | AD94: 0.9246304252 | AE94: 0.44635154 | AF94: 0.3257032273
A95: 0.02275013195 | C95: 70 | D95: 0.01400366382 | F95: 0.01217816511 | O95: =IF(K95="","",AVERAGE(L$26:L95)) ->  | P95: =IFERROR(_xlfn.STDEV.S(L$26:L95)/J95^0.5,"") ->  | U95: 70 | W95: 0.02659757402 | X95: 0.5772326894 | Y95: 0.71 | Z95: 0.8289826287 | AA95: 0.1621786921 | AB95: 0.03085042934 | AC95: 0.9397840582 | AD95: 0.9318086761 | AE95: 0.4600082294 | AF95: 0.3319004563
A96: 0.02659757402 | C96: 71 | D96: 0.01571327298 | F96: 0.01405979454 | O96: =IF(K96="","",AVERAGE(L$26:L96)) ->  | P96: =IFERROR(_xlfn.STDEV.S(L$26:L96)/J96^0.5,"") ->  | U96: 71 | W96: 0.03097407571 | X96: 0.6027283903 | Y96: 0.72 | Z96: 0.8336451288 | AA96: 0.1742810718 | AB96: 0.03327194826 | AC96: 0.9422243234 | AD96: 0.9378547661 | AE96: 0.4735844531 | AF96: 0.3380335935
A97: 0.03097407571 | C97: 72 | D97: 0.01766399915 | F97: 0.01634415919 | O97: =IF(K97="","",AVERAGE(L$26:L97)) ->  | P97: =IFERROR(_xlfn.STDEV.S(L$26:L97)/J97^0.5,"") ->  | U97: 72 | W97: 0.03593031911 | X97: 0.6281732399 | Y97: 0.73 | Z97: 0.8381621382 | AA97: 0.186919568 | AB97: 0.03587104241 | AC97: 0.9445121483 | AD97: 0.9431364671 | AE97: 0.4870550979 | AF97: 0.3441160806
A98: 0.03593031911 | C98: 73 | D98: 0.01987064132 | F98: 0.01912341825 | O98: =IF(K98="","",AVERAGE(L$26:L98)) ->  | P98: =IFERROR(_xlfn.STDEV.S(L$26:L98)/J98^0.5,"") ->  | U98: 73 | W98: 0.04151821969 | X98: 0.6534761483 | Y98: 0.74 | Z98: 0.8425386476 | AA98: 0.2000851744 | AB98: 0.038620717 | AC98: 0.9466655945 | AD98: 0.9477969733 | AE98: 0.5004013047 | AF98: 0.3501418786
A99: 0.04151821969 | C99: 74 | D99: 0.02233139743 | F99: 0.02249767613 | O99: =IF(K99="","",AVERAGE(L$26:L99)) ->  | P99: =IFERROR(_xlfn.STDEV.S(L$26:L99)/J99^0.5,"") ->  | U99: 74 | W99: 0.04779035227 | X99: 0.6785430908 | Y99: 0.75 | Z99: 0.8467794713 | AA99: 0.2137665055 | AB99: 0.04152244829 | AC99: 0.9487020654 | AD99: 0.9517229657 | AE99: 0.5136116692 | AF99: 0.3560930652
A100: 0.04779035227 | C100: 75 | D100: 0.02501518613 | F100: 0.02655646091 | O100: =IF(K100="","",AVERAGE(L$26:L100)) ->  | P100: =IFERROR(_xlfn.STDEV.S(L$26:L100)/J100^0.5,"") ->  | U100: 75 | W100: 0.0547992917 | X100: 0.7032776593 | Y100: 0.76 | Z100: 0.8508892521 | AA100: 0.2279484976 | AB100: 0.04462368812 | AC100: 0.9506383469 | AD100: 0.9552111341 | AE100: 0.5266834433 | AF100: 0.3620058746
A101: 0.0547992917 | C101: 76 | D101: 0.02784553633 | F101: 0.03133638573 | O101: =IF(K101="","",AVERAGE(L$26:L101)) ->  | P101: =IFERROR(_xlfn.STDEV.S(L$26:L101)/J101^0.5,"") ->  | U101: 76 | W101: 0.06259687279 | X101: 0.7275816867 | Y101: 0.77 | Z101: 0.8548724675 | AA101: 0.2426142971 | AB101: 0.04798180044 | AC101: 0.9524902173 | AD101: 0.9581873062 | AE101: 0.5396194397 | AF101: 0.3679180996
A102: 0.06259687279 | C102: 77 | D102: 0.03068464264 | F102: 0.03674144712 | O102: =IF(K102="","",AVERAGE(L$26:L102)) ->  | P102: =IFERROR(_xlfn.STDEV.S(L$26:L102)/J102^0.5,"") ->  | U102: 77 | W102: 0.07123337741 | X102: 0.7513559478 | Y102: 0.78 | Z102: 0.8587334345 | AA102: 0.2577436102 | AB102: 0.05164761142 | AC102: 0.9542717342 | AD102: 0.9607967364 | AE102: 0.5524249374 | AF102: 0.3738640264
A103: 0.07123337741 | C103: 78 | D103: 0.03332598156 | F103: 0.0424254012 | O103: =IF(K103="","",AVERAGE(L$26:L103)) ->  | P103: =IFERROR(_xlfn.STDEV.S(L$26:L103)/J103^0.5,"") ->  | U103: 78 | W103: 0.08075665923 | X103: 0.774500942 | Y103: 0.79 | Z103: 0.8624763154 | AA103: 0.2733141553 | AB103: 0.0556196448 | AC103: 0.955994489 | AD103: 0.9630157308 | AE103: 0.5651045785 | AF103: 0.3798346938
A104: 0.08075665923 | C104: 79 | D104: 0.03550806951 | F104: 0.047686786 | O104: =IF(K104="","",AVERAGE(L$26:L104)) ->  | P104: =IFERROR(_xlfn.STDEV.S(L$26:L104)/J104^0.5,"") ->  | U104: 79 | W104: 0.09121121973 | X104: 0.79691776 | Y104: 0.8 | Z104: 0.8661051228 | AA104: 0.2893004564 | AB104: 0.05986816409 | AC104: 0.9576670057 | AD104: 0.9650935913 | AE104: 0.5776592658 | AF104: 0.3858086729
A105: 0.09121121973 | C105: 80 | D105: 0.03695945099 | F105: 0.05151445432 | O105: =IF(K105="","",AVERAGE(L$26:L105)) ->  | P105: =IFERROR(_xlfn.STDEV.S(L$26:L105)/J105^0.5,"") ->  | U105: 80 | W105: 0.1026372518 | X105: 0.8185090397 | Y105: 0.81 | Z105: 0.8696237248 | AA105: 0.3056752328 | AB105: 0.06436997063 | AC105: 0.959294288 | AD105: 0.9670169258 | AE105: 0.5900860494 | AF105: 0.3917740805
A106: 0.1026372518 | C106: 81 | D106: 0.03746985204 | F106: 0.05292935212 | O106: =IF(K106="","",AVERAGE(L$26:L106)) ->  | P106: =IFERROR(_xlfn.STDEV.S(L$26:L106)/J106^0.5,"") ->  | U106: 81 | W106: 0.1150696702 | X106: 0.8391800158 | Y106: 0.82 | Z106: 0.8730358501 | AA106: 0.3224081593 | AB106: 0.06916682203 | AC106: 0.9608777233 | AD106: 0.968737316 | AE106: 0.6023780144 | AF106: 0.3977377348
A107: 0.1150696702 | C107: 82 | D107: 0.03695945099 | F107: 0.05151445432 | O107: =IF(K107="","",AVERAGE(L$26:L107)) ->  | P107: =IFERROR(_xlfn.STDEV.S(L$26:L107)/J107^0.5,"") ->  | U107: 82 | W107: 0.1285371493 | X107: 0.8588396668 | Y107: 0.83 | Z107: 0.8763450927 | AA107: 0.3394676146 | AB107: 0.07432557261 | AC107: 0.9624153287 | AD107: 0.9703546888 | AE107: 0.6145283425 | AF107: 0.4036811291
A108: 0.1285371493 | C108: 83 | D108: 0.03550806951 | F108: 0.047686786 | O108: =IF(K108="","",AVERAGE(L$26:L108)) ->  | P108: =IFERROR(_xlfn.STDEV.S(L$26:L108)/J108^0.5,"") ->  | U108: 83 | W108: 0.1430611922 | X108: 0.8774019638 | Y108: 0.84 | Z108: 0.879554917 | AA108: 0.3568192719 | AB108: 0.07989219791 | AC108: 0.9639024202 | AD108: 0.9718608029 | AE108: 0.626534374 | AF108: 0.4095882891
A109: 0.1430611922 | C109: 84 | D109: 0.03332598156 | F109: 0.0424254012 | O109: =IF(K109="","",AVERAGE(L$26:L109)) ->  | P109: =IFERROR(_xlfn.STDEV.S(L$26:L109)/J109^0.5,"") ->  | U109: 84 | W109: 0.1586552539 | X109: 0.8947872258 | Y109: 0.85 | Z109: 0.8826686622 | AA109: 0.3744280049 | AB109: 0.08583907043 | AC109: 0.9653326669 | AD109: 0.9733174687 | AE109: 0.6383974065 | AF109: 0.4154344742
A110: 0.1586552539 | C110: 85 | D110: 0.03068464264 | F110: 0.03674144712 | O110: =IF(K110="","",AVERAGE(L$26:L110)) ->  | P110: =IFERROR(_xlfn.STDEV.S(L$26:L110)/J110^0.5,"") ->  | U110: 85 | W110: 0.1753239449 | X110: 0.9109235866 | Y110: 0.86 | Z110: 0.8856895471 | AA110: 0.3922564956 | AB110: 0.09211325504 | AC110: 0.9666992625 | AD110: 0.9747391085 | AE110: 0.6501224933 | AF110: 0.4212405289
A111: 0.1753239449 | C111: 86 | D111: 0.02784553633 | F111: 0.03133638573 | O111: =IF(K111="","",AVERAGE(L$26:L111)) ->  | P111: =IFERROR(_xlfn.STDEV.S(L$26:L111)/J111^0.5,"") ->  | U111: 86 | W111: 0.1930623371 | X111: 0.9257485765 | Y111: 0.87 | Z111: 0.8886206739 | AA111: 0.4102670367 | AB111: 0.09866223839 | AC111: 0.9679960126 | AD111: 0.9761216017 | AE111: 0.6617153405 | AF111: 0.4270384017
A112: 0.1930623371 | C112: 87 | D112: 0.02501518613 | F112: 0.02655646091 | O112: =IF(K112="","",AVERAGE(L$26:L112)) ->  | P112: =IFERROR(_xlfn.STDEV.S(L$26:L112)/J112^0.5,"") ->  | U112: 87 | W112: 0.2118553986 | X112: 0.9392108251 | Y112: 0.88 | Z112: 0.8914650332 | AA112: 0.4284200482 | AB112: 0.1054950891 | AC112: 0.969218307 | AD112: 0.9774834915 | AE112: 0.6731792041 | AF112: 0.4328596514
A113: 0.2118553986 | C113: 88 | D113: 0.02233139743 | F113: 0.02249767613 | O113: =IF(K113="","",AVERAGE(L$26:L113)) ->  | P113: =IFERROR(_xlfn.STDEV.S(L$26:L113)/J113^0.5,"") ->  | U113: 88 | W113: 0.2316775746 | X113: 0.951271889 | Y113: 0.89 | Z113: 0.8942255077 | AA113: 0.4466759907 | AB113: 0.1126676947 | AC113: 0.9703638404 | AD113: 0.9788093251 | AE113: 0.6845089906 | AF113: 0.4386846025
A114: 0.2316775746 | C114: 89 | D114: 0.01987064132 | F114: 0.01912341825 | O114: =IF(K114="","",AVERAGE(L$26:L114)) ->  | P114: =IFERROR(_xlfn.STDEV.S(L$26:L114)/J114^0.5,"") ->  | U114: 89 | W114: 0.2524925375 | X114: 0.96190821 | Y114: 0.9 | Z114: 0.8969048759 | AA114: 0.4649942479 | AB114: 0.1202964705 | AC114: 0.9714331155 | AD114: 0.9801032234 | AE114: 0.6956853572 | AF114: 0.4444978651
A115: 0.2524925375 | C115: 90 | D115: 0.01766399915 | F115: 0.01634415919 | O115: =IF(K115="","",AVERAGE(L$26:L115)) ->  | P115: =IFERROR(_xlfn.STDEV.S(L$26:L115)/J115^0.5,"") ->  | U115: 90 | W115: 0.2742531178 | X115: 0.9711132079 | Y115: 0.91 | Z115: 0.8995058169 | AA115: 0.4833349757 | AB115: 0.1284877085 | AC115: 0.9724296363 | AD115: 0.9813311906 | AE115: 0.7066797009 | AF115: 0.450274309
A116: 0.2742531178 | C116: 91 | D116: 0.01571327298 | F116: 0.01405979454 | O116: =IF(K116="","",AVERAGE(L$26:L116)) ->  | P116: =IFERROR(_xlfn.STDEV.S(L$26:L116)/J116^0.5,"") ->  | U116: 91 | W116: 0.2969014286 | X116: 0.9788995142 | Y116: 0.92 | Z116: 0.9020309129 | AA116: 0.5016574062 | AB116: 0.1373394758 | AC116: 0.973359723 | AD116: 0.9825045585 | AE116: 0.7174591471 | AF116: 0.4560162719
A117: 0.2969014286 | C117: 92 | D117: 0.01400366382 | F117: 0.01217816511 | O117: =IF(K117="","",AVERAGE(L$26:L117)) ->  | P117: =IFERROR(_xlfn.STDEV.S(L$26:L117)/J117^0.5,"") ->  | U117: 92 | W117: 0.3203691909 | X117: 0.9853013504 | Y117: 0.93 | Z117: 0.9044826537 | AA117: 0.5199222859 | AB117: 0.1469032312 | AC117: 0.9742320608 | AD117: 0.9836913187 | AE117: 0.7279922157 | AF117: 0.4617138186
A118: 0.3203691909 | C118: 93 | D118: 0.01251243402 | F118: 0.01062114307 | O118: =IF(K118="","",AVERAGE(L$26:L118)) ->  | P118: =IFERROR(_xlfn.STDEV.S(L$26:L118)/J118^0.5,"") ->  | U118: 93 | W118: 0.3445782584 | X118: 0.9903770577 | Y118: 0.94 | Z118: 0.9068634399 | AA118: 0.5380904231 | AB118: 0.1572038606 | AC118: 0.9750571102 | AD118: 0.9847451865 | AE118: 0.7382544865 | AF118: 0.4673544814
A119: 0.3445782584 | C119: 94 | D119: 0.0112142529 | F119: 0.00932509361 | O119: =IF(K119="","",AVERAGE(L$26:L119)) ->  | P119: =IFERROR(_xlfn.STDEV.S(L$26:L119)/J119^0.5,"") ->  | U119: 94 | W119: 0.3694413402 | X119: 0.9942117821 | Y119: 0.95 | Z119: 0.9091755862 | AA119: 0.5561243154 | AB119: 0.1681557398 | AC119: 0.9758463479 | AD119: 0.985749606 | AE119: 0.748234241 | AF119: 0.472920338
A120: 0.3694413402 | C120: 95 | D120: 0.01008420274 | F120: 0.008239192097 | O120: =IF(K120="","",AVERAGE(L$26:L120)) ->  | P120: =IFERROR(_xlfn.STDEV.S(L$26:L120)/J120^0.5,"") ->  | U120: 95 | W120: 0.3948629105 | X120: 0.996920321 | Y120: 0.96 | Z120: 0.9114213244 | AA120: 0.5739868181 | AB120: 0.1795844571 | AC120: 0.9766113433 | AD120: 0.9866942753 | AE120: 0.757938104 | AF120: 0.4784456745
A121: 0.3948629105 | C121: 96 | D121: 0.009099286246 | F121: 0.007323192113 | O121: =IF(K121="","",AVERAGE(L$26:L121)) ->  | P121: =IFERROR(_xlfn.STDEV.S(L$26:L121)/J121^0.5,"") ->  | U121: 96 | W121: 0.4207402906 | X121: 0.9986501367 | Y121: 0.97 | Z121: 0.9136028071 | AA121: 0.591642945 | AB121: 0.1912607673 | AC121: 0.9773626744 | AD121: 0.98761113 | AE121: 0.7673826298 | AF121: 0.4839610758
A122: 0.4207402906 | C122: =C121+OFFSET(W$23,,B$11-1) -> 97 | D122: 0.008239041159 | F122: 0.006545296083 | I122: =IF(L122<>"",0,"") ->  | J122: =IF(B$9>J121,J121+1,"") ->  | K122: =IFERROR(( MOD(( MOD( MOD( 999999999999989, MOD( PM_Index*2499997 +$J122*1800451, 7450589 ) * 4658 + 7450581 ) * 383, 99991 ) * 7440893 + MOD( MOD( 999999999999989, MOD( PM_Index*2246527 +$J122*2399993, 7450987 ) * 7580 + 7560584 ) * 17669, 7440893 )) * 1343, 4294967296 ) + 0.5 ) / 4294967296,"") ->  | M122: =IF(L122="",NA(),L122) ->  | O122: =IF(K122="","",AVERAGE(L$26:L122)) ->  | P122: =IFERROR(_xlfn.STDEV.S(L$26:L122)/J122^0.5,"") ->  | U122: 97 | W122: 0.4469648834 | X122: 0.9995845426 | Y122: 0.98 | Z122: 0.91572211 | AA122: 0.6090584284 | AB122: 0.2030581325 | AC122: 0.978108838 | AD122: 0.9885135622 | AE122: 0.7765858876 | AF122: 0.4895053087
A123: 0.4469648834 | C123: 98 | D123: 0.007485657701 | F123: 0.005880345032 | O123: =IF(K123="","",AVERAGE(L$26:L123)) ->  | P123: =IFERROR(_xlfn.STDEV.S(L$26:L123)/J123^0.5,"") ->  | U123: 98 | W123: 0.4734235357 | X123: 0.9999460667 | Y123: 0.99 | Z123: 0.9177812352 | AA123: 0.6262016224 | AB123: 0.2149584153 | AC123: 0.9788553485 | AD123: 0.9893809686 | AE123: 0.7855631662 | AF123: 0.4950680483
A124: 0.4734235357 | C124: 99 | D124: 0.006823841243 | F124: 0.005308359311 | O124: =IF(K124="","",AVERAGE(L$26:L124)) ->  | P124: =IFERROR(_xlfn.STDEV.S(L$26:L124)/J124^0.5,"") ->  | U124: 99 | W124: 0.5 | X124: 1 | Y124: 1 | Z124: 0.9197821141 | AA124: 0.6430418727 | AB124: 0.2270786637 | AC124: 0.979604115 | AD124: 0.9901494782 | AE124: 0.7943226783 | AF124: 0.5006329309
A125: 0.5 | C125: 100 | D125: 0.006240561264 | F125: 0.004813393173 | O125: =IF(K125="","",AVERAGE(L$26:L125)) ->  | P125: =IFERROR(_xlfn.STDEV.S(L$26:L125)/J125^0.5,"") ->  | U125: 100 | W125: 0.5265764643 | Y125: 1.01 | Z125: 0.9217266096 | AA125: 0.6595514065 | AB125: 0.2395806356 | AC125: 0.9803531082 | AD125: 0.9909015051 | AE125: 0.8028628118 | AF125: 0.5061814495
A126: 0.5265764643 | C126: 101 | D126: 0.005724764663 | F126: 0.00438264746 | O126: =IF(K126="","",AVERAGE(L$26:L126)) ->  | P126: =IFERROR(_xlfn.STDEV.S(L$26:L126)/J126^0.5,"") ->  | U126: 101 | W126: 0.5530351166 | Y126: 1.02 | Z126: 0.923616519 | AA126: 0.6757039609 | AB126: 0.2526815549 | AC126: 0.9810964423 | AD126: 0.9916700147 | AE126: 0.8111693823 | AF126: 0.5117167213
A127: 0.5530351166 | C127: 102 | D127: 0.005267093969 | F127: 0.004005786039 | O127: =IF(K127="","",AVERAGE(L$26:L127)) ->  | P127: =IFERROR(_xlfn.STDEV.S(L$26:L127)/J127^0.5,"") ->  | U127: 102 | W127: 0.5792597094 | Y127: 1.03 | Z127: 0.9254535765 | AA127: 0.6914764069 | AB127: 0.2665128103 | AC127: 0.9818249923 | AD127: 0.992406589 | AE127: 0.8192243122 | AF127: 0.5172227718
A128: 0.5792597094 | C128: 103 | D128: 0.004859629508 | F128: 0.003674409784 | O128: =IF(K128="","",AVERAGE(L$26:L128)) ->  | P128: =IFERROR(_xlfn.STDEV.S(L$26:L128)/J128^0.5,"") ->  | U128: 103 | W128: 0.6051370895 | Y128: 1.04 | Z128: 0.9272394552 | AA128: 0.7068472396 | AB128: 0.2811129961 | AC128: 0.9825275138 | AD128: 0.9930669304 | AE128: 0.8270143116 | AF128: 0.5226849906
A129: 0.6051370895 | C129: 104 | D129: 0.004495662682 | F129: 0.003381651111 | O129: =IF(K129="","",AVERAGE(L$26:L129)) ->  | P129: =IFERROR(_xlfn.STDEV.S(L$26:L129)/J129^0.5,"") ->  | U129: 104 | W129: 0.6305586598 | Y129: 1.05 | Z129: 0.9289757699 | AA129: 0.7217980248 | AB129: 0.2963764528 | AC129: 0.9831920795 | AD129: 0.9936767933 | AE129: 0.834532554 | AF129: 0.5280879877
A130: 0.6305586598 | C130: 105 | D130: 0.004169501304 | F130: 0.003121860369 | O130: =IF(K130="","",AVERAGE(L$26:L130)) ->  | P130: =IFERROR(_xlfn.STDEV.S(L$26:L130)/J130^0.5,"") ->  | U130: 105 | W130: 0.6554217416 | Y130: 1.06 | Z130: 0.930664079 | AA130: 0.7363121048 | AB130: 0.3122074332 | AC130: 0.9838075925 | AD130: 0.9942495699 | AE130: 0.8417803533 | AF130: 0.5334602052
A131: 0.6554217416 | C131: 106 | D131: 0.00387630489 | F131: 0.002890362203 | O131: =IF(K131="","",AVERAGE(L$26:L131)) ->  | P131: =IFERROR(_xlfn.STDEV.S(L$26:L131)/J131^0.5,"") ->  | U131: 106 | W131: 0.6796308091 | Y131: 1.07 | Z131: 0.9323058867 | AA131: 0.7503759536 | AB131: 0.3284939511 | AC131: 0.9843651709 | AD131: 0.9947986525 | AE131: 0.848768372 | AF131: 0.5388378774
A132: 0.6796308091 | C132: 107 | D132: 0.003611946536 | F132: 0.002683265302 | O132: =IF(K132="","",AVERAGE(L$26:L132)) ->  | P132: =IFERROR(_xlfn.STDEV.S(L$26:L132)/J132^0.5,"") ->  | U132: 107 | W132: 0.7030985714 | Y132: 1.08 | Z132: 0.9339026448 | AA132: 0.7639773339 | AB132: 0.3451729482 | AC132: 0.9848592922 | AD132: 0.9953652481 | AE132: 0.8555178307 | AF132: 0.5442595761
A133: 0.7030985714 | C133: 108 | D133: 0.003372897733 | F133: 0.002497313019 | O133: =IF(K133="","",AVERAGE(L$26:L133)) ->  | P133: =IFERROR(_xlfn.STDEV.S(L$26:L133)/J133^0.5,"") ->  | U133: 108 | W133: 0.7257468822 | Y133: 1.09 | Z133: 0.9354557552 | AA133: 0.7771067933 | AB133: 0.3621358126 | AC133: 0.9852885252 | AD133: 0.9958288263 | AE133: 0.8620545438 | AF133: 0.549716535
A134: 0.7257468822 | C134: 109 | D134: 0.003156132557 | F134: 0.002329765432 | O134: =IF(K134="","",AVERAGE(L$26:L134)) ->  | P134: =IFERROR(_xlfn.STDEV.S(L$26:L134)/J134^0.5,"") ->  | U134: 109 | W134: 0.7475074625 | Y134: 1.1 | Z134: 0.9369665711 | AA134: 0.7897564079 | AB134: 0.3793281329 | AC134: 0.9856556775 | AD134: 0.9962501674 | AE134: 0.8684029558 | AF134: 0.5551999878
A135: 0.7475074625 | C135: 110 | D135: 0.00295904809 | F135: 0.002178305678 | O135: =IF(K135="","",AVERAGE(L$26:L135)) ->  | P135: =IFERROR(_xlfn.STDEV.S(L$26:L135)/J135^0.5,"") ->  | U135: 110 | W135: 0.7683224254 | Y135: 1.11 | Z135: 0.9384363993 | AA135: 0.8019210805 | AB135: 0.3966933887 | AC135: 0.9859673724 | AD135: 0.9966560559 | AE135: 0.8745849399 | AF135: 0.5607031163
A136: 0.7683224254 | C136: 111 | D136: 0.002779398307 | F136: 0.002040965155 | O136: =IF(K136="","",AVERAGE(L$26:L136)) ->  | P136: =IFERROR(_xlfn.STDEV.S(L$26:L136)/J136^0.5,"") ->  | U136: 111 | W136: 0.7881446014 | Y136: 1.12 | Z136: 0.9398665018 | AA136: 0.813597312 | AB136: 0.4142912639 | AC136: 0.9862331829 | AD136: 0.9970289788 | AE136: 0.8806185977 | AF136: 0.5662399465
A137: 0.7881446014 | C137: 112 | D137: 0.002615239094 | F137: 0.001916063456 | O137: =IF(K137="","",AVERAGE(L$26:L137)) ->  | P137: =IFERROR(_xlfn.STDEV.S(L$26:L137)/J137^0.5,"") ->  | U137: 112 | W137: 0.8069376629 | Y137: 1.13 | Z137: 0.9412580972 | AA137: 0.8247843299 | AB137: 0.4322250979 | AC137: 0.986464509 | AD137: 0.9973905698 | AE137: 0.8865159056 | AF137: 0.571815933
A138: 0.8069376629 | C138: 113 | D138: 0.002464882465 | F138: 0.001802159859 | O138: =IF(K138="","",AVERAGE(L$26:L138)) ->  | P138: =IFERROR(_xlfn.STDEV.S(L$26:L138)/J138^0.5,"") ->  | U138: 113 | W138: 0.8246760551 | Y138: 1.14 | Z138: 0.9426123629 | AA138: 0.8354827709 | AB138: 0.4506657173 | AC138: 0.9866733789 | AD138: 0.9977068331 | AE138: 0.8922803613 | AF138: 0.5774306864
A139: 0.8246760551 | C139: 114 | D139: 0.002326858357 | F139: 0.00169801396 | O139: =IF(K139="","",AVERAGE(L$26:L139)) ->  | P139: =IFERROR(_xlfn.STDEV.S(L$26:L139)/J139^0.5,"") ->  | U139: 114 | W139: 0.8413447461 | Y139: 1.15 | Z139: 0.9439304361 | AA139: 0.8456958816 | AB139: 0.4696139658 | AC139: 0.9868712968 | AD139: 0.9979592257 | AE139: 0.8979091603 | AF139: 0.5830838169
A140: 0.8413447461 | C140: 115 | D140: 0.002199882668 | F140: 0.00160255354 | O140: =IF(K140="","",AVERAGE(L$26:L140)) ->  | P140: =IFERROR(_xlfn.STDEV.S(L$26:L140)/J140^0.5,"") ->  | U140: 115 | W140: 0.8569388078 | Y140: 1.16 | Z140: 0.9452134153 | AA140: 0.855428088 | AB140: 0.4889099833 | AC140: 0.9870682777 | AD140: 0.9981817433 | AE140: 0.9033953712 | AF140: 0.5888152602
A141: 0.8569388078 | C141: 116 | D141: 0.002082830461 | F141: 0.001514848224 | O141: =IF(K141="","",AVERAGE(L$26:L141)) ->  | P141: =IFERROR(_xlfn.STDEV.S(L$26:L141)/J141^0.5,"") ->  | U141: 116 | W141: 0.8714628507 | Y141: 1.17 | Z141: 0.946462362 | AA141: 0.8646859338 | AB141: 0.5082437513 | AC141: 0.9872722152 | AD141: 0.9983888082 | AE141: 0.9087289361 | AF141: 0.5946696272
A142: 0.8714628507 | C142: 117 | D142: 0.001974713433 | F142: 0.001434087776 | O142: =IF(K142="","",AVERAGE(L$26:L142)) ->  | P142: =IFERROR(_xlfn.STDEV.S(L$26:L142)/J142^0.5,"") ->  | U142: 117 | W142: 0.8849303298 | Y142: 1.18 | Z142: 0.9476783021 | AA142: 0.8734769401 | AB142: 0.5274153396 | AC142: 0.9874886042 | AD142: 0.9985701188 | AE142: 0.9138976688 | AF142: 0.6006917239
A143: 0.8849303298 | C143: 118 | D143: 0.00187466092 | F143: 0.001359564124 | O143: =IF(K143="","",AVERAGE(L$26:L143)) ->  | P143: =IFERROR(_xlfn.STDEV.S(L$26:L143)/J143^0.5,"") ->  | U143: 118 | W143: 0.8973627482 | Y143: 1.19 | Z143: 0.9488622269 | AA143: 0.8818105938 | AB143: 0.5462840799 | AC143: 0.9877205912 | AD143: 0.9987473087 | AE143: 0.9188896818 | AF143: 0.6068603161
A144: 0.8973627482 | C144: 119 | D144: 0.001781903833 | F144: 0.001290656429 | O144: =IF(K144="","",AVERAGE(L$26:L144)) ->  | P144: =IFERROR(_xlfn.STDEV.S(L$26:L144)/J144^0.5,"") ->  | U144: 119 | W144: 0.9087887803 | Y144: 1.2 | Z144: 0.9500150945 | AA144: 0.8896971792 | AB144: 0.5647940844 | AC144: 0.9879692551 | AD144: 0.9989049253 | AE144: 0.9236958114 | AF144: 0.6131341046
A145: 0.9087887803 | C145: 120 | D145: 0.00169576104 | F145: 0.001226818603 | O145: =IF(K145="","",AVERAGE(L$26:L145)) ->  | P145: =IFERROR(_xlfn.STDEV.S(L$26:L145)/J145^0.5,"") ->  | U145: 120 | W145: 0.9192433408 | Y145: 1.21 | Z145: 0.951137831 | AA145: 0.8971484237 | AB145: 0.5828797643 | AC145: 0.9882340277 | AD145: 0.9990460591 | AE145: 0.9283096182 | AF145: 0.6194719849
A146: 0.9192433408 | C146: 121 | D146: 0.001615627788 | F146: 0.001167568853 | O146: =IF(K146="","",AVERAGE(L$26:L146)) ->  | P146: =IFERROR(_xlfn.STDEV.S(L$26:L146)/J146^0.5,"") ->  | U146: 121 | W146: 0.9287666226 | Y146: 1.22 | Z146: 0.9522313318 | AA146: 0.9041766453 | AB146: 0.600638132 | AC146: 0.9885131801 | AD146: 0.9991408351 | AE146: 0.9327273866 | AF146: 0.6258449306
A147: 0.9287666226 | C147: 122 | D147: 0.001540965824 | F147: 0.001112480874 | O147: =IF(K147="","",AVERAGE(L$26:L147)) ->  | P147: =IFERROR(_xlfn.STDEV.S(L$26:L147)/J147^0.5,"") ->  | U147: 122 | W147: 0.9374031272 | Y147: 1.23 | Z147: 0.9532964626 | AA147: 0.9107956576 | AB147: 0.6182292585 | AC147: 0.9888042981 | AD147: 0.9992263395 | AE147: 0.9369479563 | AF147: 0.6322139801
A148: 0.9374031272 | C148: 123 | D148: 0.001471294955 | F148: 0.001061176409 | O148: =IF(K148="","",AVERAGE(L$26:L148)) ->  | P148: =IFERROR(_xlfn.STDEV.S(L$26:L148)/J148^0.5,"") ->  | U148: 123 | W148: 0.9452007083 | Y148: 1.24 | Z148: 0.9543340605 | AA148: 0.9170196408 | AB148: 0.6358336715 | AC148: 0.9891046694 | AD148: 0.9993015422 | AE148: 0.940972552 | AF148: 0.6385354965
A149: 0.9452007083 | C149: 124 | D149: 0.001406185801 | F149: 0.001013318936 | O149: =IF(K149="","",AVERAGE(L$26:L149)) ->  | P149: =IFERROR(_xlfn.STDEV.S(L$26:L149)/J149^0.5,"") ->  | U149: 124 | W149: 0.9522096477 | Y149: 1.25 | Z149: 0.9553449349 | AA149: 0.9228638953 | AB149: 0.6534496838 | AC149: 0.9894115464 | AD149: 0.9993685035 | AE149: 0.9448038014 | AF149: 0.6447611675
A150: 0.9522096477 | C150: 125 | D150: 0.001345253576 | F150: 0.0009686083034 | O150: =IF(K150="","",AVERAGE(L$26:L150)) ->  | P150: =IFERROR(_xlfn.STDEV.S(L$26:L150)/J150^0.5,"") ->  | U150: 125 | W150: 0.9584817803 | Y150: 1.26 | Z150: 0.9563298687 | AA150: 0.9283439511 | AB150: 0.6710051687 | AC150: 0.9897222636 | AD150: 0.9994220725 | AE150: 0.9484447508 | AF150: 0.6509194349
A151: 0.9584817803 | C151: 126 | D151: 0.001288152714 | F151: 0.0009267761351 | O151: =IF(K151="","",AVERAGE(L$26:L151)) ->  | P151: =IFERROR(_xlfn.STDEV.S(L$26:L151)/J151^0.5,"") ->  | U151: 126 | W151: 0.9640696809 | Y151: 1.27 | Z151: 0.9572896194 | AA151: 0.9334760064 | AB151: 0.6883535527 | AC151: 0.990034248 | AD151: 0.9994591588 | AE151: 0.9518985918 | AF151: 0.6570630917
A152: 0.9640696809 | C152: 127 | D152: 0.001234572234 | F152: 0.0008875819064 | O152: =IF(K152="","",AVERAGE(L$26:L152)) ->  | P152: =IFERROR(_xlfn.STDEV.S(L$26:L152)/J152^0.5,"") ->  | U152: 127 | W152: 0.9690259243 | Y152: 1.28 | Z152: 0.9582249193 | AA152: 0.93827616 | AB152: 0.7054115317 | AC152: 0.9903449624 | AD152: 0.9994910941 | AE152: 0.955168387 | AF152: 0.6632449308
A153: =OFFSET(W152,,B$11-1) -> 0.9690259243 | C153: 128 | D153: =_xlfn.T.DIST((C153+B$22/2-B$17)/B$18,B$9-1,1)-_xlfn.T.DIST((C153-B$22/2-B$17)/B$18,B$9-1,1) -> 0.001184231716 | F153: =_xlfn.T.DIST((C153+B$22/2-B$17)/B$19,B$9-1,1)-_xlfn.T.DIST((C153-B$22/2-B$17)/B$19,B$9-1,1) -> 0.000850809564 | O153: =IF(K153="","",AVERAGE(L$26:L153)) ->  | P153: =IFERROR(_xlfn.STDEV.S(L$26:L153)/J153^0.5,"") ->  | U153: 128 | W153: =NORMDIST(C154,100,15,1) -> 0.973402426 | X153: =IFERROR(BETADIST(C154,6,3,0,100),"") ->  | Y153: =C154/100 -> 1.29 | Z153: 0.9591364774 | AA153: 0.9427608643 | AB153: 0.7221183672 | AC153: 0.9906518149 | AD153: 0.9995209692 | AE153: 0.9582568766 | AF153: 0.6694704069
A154: 0.973402426 | C154: =C153+OFFSET(W$23,,B$11-1) -> 129 | D154: 0.001136877813 | F154: 0.000816264614 | I154: =IF(L154<>"",0,"") ->  | J154: =IF(B$9>J153,J153+1,"") ->  | K154: =IFERROR(( MOD(( MOD( MOD( 999999999999989, MOD( PM_Index*2499997 +$J154*1800451, 7450589 ) * 4658 + 7450581 ) * 383, 99991 ) * 7440893 + MOD( MOD( 999999999999989, MOD( PM_Index*2246527 +$J154*2399993, 7450987 ) * 7580 + 7560584 ) * 17669, 7440893 )) * 1343, 4294967296 ) + 0.5 ) / 4294967296,"") ->  | M154: =IF(L154="",NA(),L154) ->  | O154: =IF(K154="","",AVERAGE(L$26:L154)) ->  | P154: =IFERROR(_xlfn.STDEV.S(L$26:L154)/J154^0.5,"") ->  | U154: 129 | W154: 0.9772498681 | Y154: 1.3 | Z154: =_xlfn.LOGNORM.DIST(C155,(LN(120)+LN(10))/2,(LN(120)-LN(10))/3.29,1) -> 0.9600249793 | AA154: 0.9469461155 | AB154: 0.7385350085 | AC154: 0.9909520715 | AD154: 0.9995508442 | AE154: 0.961166285 | AF154: 0.6757480916
A155: 0.9772498681 | B155: =IF(B$12,A155-A154,"") ->  | C155: 130 | D155: 0.001092281204 | F155: 0.0007837716045 | L155: =IFERROR(VLOOKUP(K155,A$25:C$225,3),"") ->  | O155: =IF(K155="","",AVERAGE(L$26:L155)) ->  | P155: =IFERROR(_xlfn.STDEV.S(L$26:L155)/J155^0.5,"") ->  | T155: =IF($B$12,OFFSET(W$19,,B$11-1),"") ->  | U155: 130 | W155: 0.9806172129 | Y155: 1.31 | Z155: 0.9608910889 | AA155: 0.9508480368 | AB155: 0.7547251464 | AC155: 0.9912428071 | AD155: 0.9995765986 | AE155: 0.9638987802 | AF155: 0.6820918161
A156: 0.9806172129 | C156: 131 | D156: 0.001050233945 | F156: 0.0007531719424 | O156: =IF(K156="","",AVERAGE(L$26:L156)) ->  | P156: =IFERROR(_xlfn.STDEV.S(L$26:L156)/J156^0.5,"") ->  | Q156: =IFERROR(TINV(0.1,J156-1)*P156,"") ->  | R156: =IFERROR(O156+Q156,"") ->  | S156: =IFERROR(O156-Q156,"") ->  | U156: 131 | W156: 0.9835513042 | Y156: 1.32 | Z156: 0.9617354483 | AA156: 0.9544821843 | AB156: 0.770721681 | AC156: 0.9915209244 | AD156: 0.9996002926 | AE156: 0.9664569332 | AF156: 0.688544633
A157: 0.9835513042 | C157: 132 | D157: 0.001010547142 | F157: 0.0007243219951 | O157: =IF(K157="","",AVERAGE(L$26:L157)) ->  | P157: =IFERROR(_xlfn.STDEV.S(L$26:L157)/J157^0.5,"") ->  | U157: 132 | W157: 0.9860965525 | Y157: 1.33 | Z157: 0.9625586792 | AA157: 0.9578640011 | AB157: 0.7864073534 | AC157: 0.9917832689 | AD157: 0.9996250167 | AE157: 0.9688441612 | AF157: 0.6951063476
A158: 0.9860965525 | C158: 133 | D158: 0.0009730489184 | F158: 0.0006970914368 | O158: =IF(K158="","",AVERAGE(L$26:L158)) ->  | P158: =IFERROR(_xlfn.STDEV.S(L$26:L158)/J158^0.5,"") ->  | U158: 133 | W158: 0.9882947019 | Y158: 1.34 | Z158: 0.9633613834 | AA158: 0.9610082046 | AB158: 0.8016486659 | AC158: 0.9920268117 | AD158: 0.9996518013 | AE158: 0.9710651709 | AF158: 0.7017648817
A159: 0.9882947019 | C159: 134 | D159: 0.0009375826217 | F159: 0.0006713618016 | O159: =IF(K159="","",AVERAGE(L$26:L159)) ->  | P159: =IFERROR(_xlfn.STDEV.S(L$26:L159)/J159^0.5,"") ->  | U159: 134 | W159: 0.9901846714 | Y159: 1.35 | Z159: 0.9641441435 | AA159: 0.9639292708 | AB159: 0.8163144406 | AC159: 0.9922488735 | AD159: 0.9996754953 | AE159: 0.9731267161 | AF159: 0.7085087416
A160: 0.9901846714 | C160: 135 | D160: 0.0009040052504 | F160: 0.0006470252178 | O160: =IF(K160="","",AVERAGE(L$26:L160)) ->  | P160: =IFERROR(_xlfn.STDEV.S(L$26:L160)/J160^0.5,"") ->  | U160: 135 | W160: 0.9918024641 | Y160: 1.36 | Z160: 0.9649075237 | AA160: 0.9666410076 | AB160: 0.8303766282 | AC160: 0.9924473622 | AD160: 0.9996960987 | AE160: 0.9750383554 | AF160: 0.7153796163
A161: 0.9918024641 | C161: 136 | D161: 0.0008721860625 | F161: 0.0006239832952 | O161: =IF(K161="","",AVERAGE(L$26:L161)) ->  | P161: =IFERROR(_xlfn.STDEV.S(L$26:L161)/J161^0.5,"") ->  | U161: 136 | W161: 0.9931811377 | Y161: 1.37 | Z161: 0.9656520701 | AA161: 0.969156905 | AB161: 0.8437995871 | AC161: 0.9926209967 | AD161: 0.9997105212 | AE161: 0.9768118958 | AF161: 0.7224108179
A162: 0.9931811377 | C162: 137 | D162: 0.000842005346 | F162: 0.0006021461461 | O162: =IF(K162="","",AVERAGE(L$26:L162)) ->  | P162: =IFERROR(_xlfn.STDEV.S(L$26:L162)/J162^0.5,"") ->  | U162: 137 | W162: 0.9943508272 | Y162: 1.38 | Z162: 0.9663783119 | AA162: 0.9714896868 | AB162: 0.8565753033 | AC162: 0.9927694931 | AD162: 0.9997239134 | AE162: 0.978460837 | AF162: 0.7296229961
A163: 0.9943508272 | C163: 138 | D163: 0.0008133533299 | F163: 0.0005814315223 | O163: =IF(K163="","",AVERAGE(L$26:L163)) ->  | P163: =IFERROR(_xlfn.STDEV.S(L$26:L163)/J163^0.5,"") ->  | U163: 138 | W163: 0.995338812 | Y163: 1.39 | Z163: 0.9670867612 | AA163: 0.9736517634 | AB163: 0.8686234249 | AC163: 0.9928936871 | AD163: 0.999739366 | AE163: 0.9799993475 | AF163: 0.7369582928
A164: 0.995338812 | C164: 139 | D164: 0.0007861292169 | F164: 0.0005617640516 | O164: =IF(K164="","",AVERAGE(L$26:L164)) ->  | P164: =IFERROR(_xlfn.STDEV.S(L$26:L164)/J164^0.5,"") ->  | U164: 139 | W164: 0.9961696194 | Y164: 1.4 | Z164: 0.9677779145 | AA164: 0.9756547324 | AB164: 0.8798821592 | AC164: 0.9929955698 | AD164: 0.9997496678 | AE164: 0.9814412412 | AF164: 0.7443705387
A165: 0.9961696194 | C165: 140 | D165: 0.0007602403245 | F165: 0.0005430745615 | O165: =IF(K165="","",AVERAGE(L$26:L165)) ->  | P165: =IFERROR(_xlfn.STDEV.S(L$26:L165)/J165^0.5,"") ->  | U165: 140 | W165: 0.9968651577 | Y165: 1.41 | Z165: 0.9684522525 | AA165: 0.9775096082 | AB165: 0.8902932986 | AC165: 0.9930782492 | AD165: 0.9997579092 | AE165: 0.9827985509 | AF165: 0.7518135642
A166: 0.9968651577 | C166: 141 | D166: 0.0007356013183 | F166: 0.0005252994797 | O166: =IF(K166="","",AVERAGE(L$26:L166)) ->  | P166: =IFERROR(_xlfn.STDEV.S(L$26:L166)/J166^0.5,"") ->  | U166: 141 | W166: 0.9974448697 | Y166: 1.42 | Z166: 0.9691102411 | AA166: 0.9792265998 | AB166: 0.8999133635 | AC166: 0.9931458524 | AD166: 0.9997692411 | AE166: 0.9840801016 | AF166: 0.7592657456
A167: 0.9974448697 | C167: 142 | D167: 0.000712133529 | F167: 0.0005083803003 | O167: =IF(K167="","",AVERAGE(L$26:L167)) ->  | P167: =IFERROR(_xlfn.STDEV.S(L$26:L167)/J167^0.5,"") ->  | U167: 142 | W167: 0.9979259016 | Y167: 1.43 | Z167: 0.9697523315 | AA167: 0.9808153776 | AB167: 0.9088191204 | AC167: 0.99320338 | AD167: 0.9997816032 | AE167: 0.9852917204 | AF167: 0.7666910436
A168: 0.9979259016 | C168: 143 | D168: 0.0006897643417 | F168: 0.0004922631083 | O168: =IF(K168="","",AVERAGE(L$26:L168)) ->  | P168: =IFERROR(_xlfn.STDEV.S(L$26:L168)/J168^0.5,"") ->  | U168: 143 | W168: 0.9983232818 | Y168: 1.44 | Z168: 0.9703789613 | AA168: 0.9822849136 | AB168: 0.9170759474 | AC168: 0.9932565296 | AD168: 0.9997939652 | AE168: 0.9864364457 | AF168: 0.7740588733
A169: 0.9983232818 | C169: 144 | D169: 0.0006684266481 | F169: 0.0004768981555 | O169: =IF(K169="","",AVERAGE(L$26:L169)) ->  | P169: =IFERROR(_xlfn.STDEV.S(L$26:L169)/J169^0.5,"") ->  | U169: 144 | W169: 0.998650102 | Y169: 1.45 | Z169: 0.9709905542 | AA169: 0.9836438026 | AB169: 0.9246543188 | AC169: 0.993311479 | AD169: 0.9998052972 | AE169: 0.9875153897 | AF169: 0.7813497538
A170: 0.998650102 | C170: 145 | D170: 0.0006480583568 | F170: 0.0004622394808 | O170: =IF(K170="","",AVERAGE(L$26:L170)) ->  | P170: =IFERROR(_xlfn.STDEV.S(L$26:L170)/J170^0.5,"") ->  | U170: 145 | W170: 0.9989176995 | Y170: 1.46 | Z170: 0.9715875213 | AA170: 0.9849000249 | AB170: 0.9315234437 | AC170: 0.9933746275 | AD170: 0.9998145687 | AE170: 0.9885286008 | AF170: 0.7886303095
A171: 0.9989176995 | C171: 146 | D171: 0.000628601952 | F171: 0.0004482445707 | O171: =IF(K171="","",AVERAGE(L$26:L171)) ->  | P171: =IFERROR(_xlfn.STDEV.S(L$26:L171)/J171^0.5,"") ->  | U171: 146 | W171: 0.9991358348 | Y171: 1.47 | Z171: 0.9721702607 | AA171: 0.9860612572 | AB171: 0.9376860638 | AC171: 0.993452287 | AD171: 0.9998238403 | AE171: 0.9894759338 | AF171: 0.7959665803
A172: 0.9991358348 | C172: 147 | D172: 0.0006100040973 | F172: 0.0004348740545 | O172: =IF(K172="","",AVERAGE(L$26:L172)) ->  | P172: =IFERROR(_xlfn.STDEV.S(L$26:L172)/J172^0.5,"") ->  | U172: 147 | W172: 0.9993128621 | Y172: 1.48 | Z172: 0.9727391586 | AA172: 0.987134664 | AB172: 0.9432271706 | AC172: 0.993550335 | AD172: 0.9998331118 | AE172: 0.9903579208 | AF172: 0.8034197358
A173: 0.9993128621 | C173: 148 | D173: 0.0005922152786 | F173: 0.00042209143 | O173: =IF(K173="","",AVERAGE(L$26:L173)) ->  | P173: =IFERROR(_xlfn.STDEV.S(L$26:L173)/J173^0.5,"") ->  | U173: 148 | W173: 0.9994558913 | Y173: 1.49 | Z173: 0.9732945894 | AA173: 0.9881270836 | AB173: 0.9482562196 | AC173: 0.9936738407 | AD173: 0.9998403231 | AE173: 0.9911756899 | AF173: 0.8109864644
A174: 0.9994558913 | C174: 149 | D174: 0.0005751894817 | F174: 0.000409862817 | O174: =IF(K174="","",AVERAGE(L$26:L174)) ->  | P174: =IFERROR(_xlfn.STDEV.S(L$26:L174)/J174^0.5,"") ->  | U174: 149 | W174: 0.9995709397 | Y174: 1.5 | Z174: 0.9738369161 | AA174: 0.9890448214 | AB174: 0.9528942655 | AC174: 0.9938266743 | AD174: 0.9998454739 | AE174: 0.9919308854 | AF174: 0.8186492332
A175: 0.9995709397 | C175: 150 | D175: 0.0005588839011 | F175: 0.0003981567355 | O175: =IF(K175="","",AVERAGE(L$26:L175)) ->  | P175: =IFERROR(_xlfn.STDEV.S(L$26:L175)/J175^0.5,"") ->  | U175: 150 | W175: 0.9996630707 | Y175: 1.51 | Z175: 0.9743664908 | AA175: 0.9898938481 | AB175: 0.9572229257 | AC175: 0.9940111135 | AD175: 0.999851655 | AE175: 0.9926256834 | AF175: 0.8263833017
A176: 0.9996630707 | C176: 151 | D176: 0.0005432586767 | F176: 0.0003869439044 | O176: =IF(K176="","",AVERAGE(L$26:L176)) ->  | P176: =IFERROR(_xlfn.STDEV.S(L$26:L176)/J176^0.5,"") ->  | U176: 151 | W176: 0.9997365225 | Y176: 1.52 | Z176: 0.9748836549 | AA176: 0.9906796203 | AB176: 0.9612845903 | AC176: 0.994227519 | AD176: 0.999857836 | AE176: 0.9932628078 | AF176: 0.8341797087
A177: 0.9997365225 | C177: 152 | D177: 0.0005282766552 | F177: 0.0003761970607 | O177: =IF(K177="","",AVERAGE(L$26:L177)) ->  | P177: =IFERROR(_xlfn.STDEV.S(L$26:L177)/J177^0.5,"") ->  | U177: 152 | W177: 0.9997948226 | Y177: 1.53 | Z177: 0.9753887396 | AA177: 0.9914072167 | AB177: 0.965065551 | AC177: 0.9944741481 | AD177: 0.9998629869 | AE177: 0.9938456115 | AF177: 0.8419821548
A178: 0.9997948226 | C178: 153 | D178: 0.0005139031731 | F178: 0.0003658907948 | O178: =IF(K178="","",AVERAGE(L$26:L178)) ->  | P178: =IFERROR(_xlfn.STDEV.S(L$26:L178)/J178^0.5,"") ->  | U178: 153 | W178: 0.9998408914 | Y178: 1.54 | Z178: 0.9758820662 | AA178: 0.9920811742 | AB178: 0.9685343842 | AC178: 0.9947471799 | AD178: 0.9998691679 | AE178: 0.9943781564 | AF178: 0.849733756
A179: 0.9998408914 | C179: 154 | D179: 0.0005001058605 | F179: 0.0003560014019 | O179: =IF(K179="","",AVERAGE(L$26:L179)) ->  | P179: =IFERROR(_xlfn.STDEV.S(L$26:L179)/J179^0.5,"") ->  | U179: 154 | W179: 0.9998771336 | Y179: 1.55 | Z179: 0.9763639463 | AA179: 0.9927056937 | AB179: 0.9716569246 | AC179: 0.9950409416 | AD179: 0.9998743188 | AE179: 0.9948651573 | AF179: 0.8573904858
A180: 0.9998771336 | C180: 155 | D180: 0.0004868544621 | F180: 0.000346506747 | O180: =IF(K180="","",AVERAGE(L$26:L180)) ->  | P180: =IFERROR(_xlfn.STDEV.S(L$26:L180)/J180^0.5,"") ->  | U180: 155 | W180: 0.9999055189 | Y180: 1.56 | Z180: 0.9768346825 | AA180: 0.9932846252 | AB180: 0.9744331722 | AC180: 0.9953483294 | AD180: 0.9998804998 | AE180: 0.9953119253 | AF180: 0.8649655911
A181: 0.9999055189 | C181: 156 | D181: 0.0004741206743 | F181: 0.0003373861417 | O181: =IF(K181="","",AVERAGE(L$26:L181)) ->  | P181: =IFERROR(_xlfn.STDEV.S(L$26:L181)/J181^0.5,"") ->  | U181: 156 | W181: 0.999927652 | Y181: 1.57 | Z181: 0.9772945682 | AA181: 0.9938215848 | AB181: 0.9768977141 | AC181: 0.9956614145 | AD181: 0.9998866809 | AE181: 0.9957235703 | AF181: 0.8724797215
A182: 0.999927652 | C182: 157 | D182: 0.0004618779963 | F182: 0.0003286202329 | O182: =IF(K182="","",AVERAGE(L$26:L182)) ->  | P182: =IFERROR(_xlfn.STDEV.S(L$26:L182)/J182^0.5,"") ->  | U182: 157 | W182: 0.9999448335 | Y182: 1.58 | Z182: 0.9777438881 | AA182: 0.9943198856 | AB182: 0.9791260514 | AC182: 0.9959722082 | AD182: 0.9998908016 | AE182: 0.9961042024 | AF182: 0.879962293
A183: 0.9999448335 | C183: 158 | D183: 0.0004501015953 | F183: 0.0003201909004 | O183: =IF(K183="","",AVERAGE(L$26:L183)) ->  | P183: =IFERROR(_xlfn.STDEV.S(L$26:L183)/J183^0.5,"") ->  | U183: 158 | W183: 0.999958112 | Y183: 1.59 | Z183: 0.9781829186 | AA183: 0.9947825851 | AB183: 0.9811951615 | AC183: 0.9962734616 | AD183: 0.9998949223 | AE183: 0.9964565862 | AF183: 0.8873864221
A184: 0.999958112 | C184: 159 | D184: 0.0004387681822 | F184: 0.0003120811643 | O184: =IF(K184="","",AVERAGE(L$26:L184)) ->  | P184: =IFERROR(_xlfn.STDEV.S(L$26:L184)/J184^0.5,"") ->  | U184: 159 | W184: 0.9999683288 | Y184: 1.6 | Z184: 0.9786119281 | AA184: 0.9952123956 | AB184: 0.9831653609 | AC184: 0.9965593793 | AD184: 0.9998980128 | AE184: 0.9967817934 | AF184: 0.8947425633
A185: 0.9999683288 | C185: 160 | D185: 0.0004278558983 | F185: 0.0003042751002 | O185: =IF(K185="","",AVERAGE(L$26:L185)) ->  | P185: =IFERROR(_xlfn.STDEV.S(L$26:L185)/J185^0.5,"") ->  | U185: 160 | W185: 0.9999761548 | Y185: 1.61 | Z185: 0.9790311769 | AA185: 0.9956117987 | AB185: 0.9850598483 | AC185: 0.9968261211 | AD185: 0.9999011033 | AE185: 0.9970795743 | AF185: 0.9020073396
A186: 0.9999761548 | C186: =C185+OFFSET(W$23,,B$11-1) -> 161 | D186: 0.0004173442115 | F186: 0.0002967577615 | I186: =IF(L186<>"",0,"") ->  | J186: =IF(B$9>J185,J185+1,"") ->  | K186: =IFERROR(( MOD(( MOD( MOD( 999999999999989, MOD( PM_Index*2499997 +$J186*1800451, 7450589 ) * 4658 + 7450581 ) * 383, 99991 ) * 7440893 + MOD( MOD( 999999999999989, MOD( PM_Index*2246527 +$J186*2399993, 7450987 ) * 7580 + 7560584 ) * 17669, 7440893 )) * 1343, 4294967296 ) + 0.5 ) / 4294967296,"") ->  | M186: =IF(L186="",NA(),L186) ->  | O186: =IF(K186="","",AVERAGE(L$26:L186)) ->  | P186: =IFERROR(_xlfn.STDEV.S(L$26:L186)/J186^0.5,"") ->  | U186: 161 | W186: 0.999982123 | Y186: 1.62 | Z186: 0.979440918 | AA186: 0.9959829483 | AB186: 0.9868817872 | AC186: 0.9970720647 | AD186: 0.999905224 | AE186: 0.997348728 | AF186: 0.909142179
A187: 0.999982123 | C187: 162 | D187: 0.0004072138216 | F187: 0.0002895151083 | O187: =IF(K187="","",AVERAGE(L$26:L187)) ->  | P187: =IFERROR(_xlfn.STDEV.S(L$26:L187)/J187^0.5,"") ->  | U187: 162 | W187: 0.9999866543 | Y187: 1.63 | Z187: 0.9798413968 | AA187: 0.9963277714 | AB187: 0.98860355 | AC187: 0.9972977972 | AD187: 0.9999093447 | AE187: 0.9975879811 | AF187: 0.9160788988
A188: 0.9999866543 | C188: 163 | D188: 0.0003974465725 | F188: 0.0002825339422 | O188: =IF(K188="","",AVERAGE(L$26:L188)) ->  | P188: =IFERROR(_xlfn.STDEV.S(L$26:L188)/J188^0.5,"") ->  | U188: 163 | W188: 0.9999900792 | Y188: 1.64 | Z188: 0.9802328517 | AA188: 0.9966479556 | AB188: 0.9901764195 | AC188: 0.9975058069 | AD188: 0.9999134654 | AE188: 0.9977968662 | AF188: 0.9227450304
A189: 0.9999900792 | C189: 164 | D189: 0.0003880253724 | F189: 0.0002758018469 | O189: =IF(K189="","",AVERAGE(L$26:L189)) ->  | P189: =IFERROR(_xlfn.STDEV.S(L$26:L189)/J189^0.5,"") ->  | U189: 164 | W189: 0.9999926566 | Y189: 1.65 | Z189: 0.9806155142 | AA189: 0.9969450586 | AB189: 0.9915423991 | AC189: 0.997699901 | AD189: 0.9999175861 | AE189: 0.9979759232 | AF189: 0.9290550531
A190: 0.9999926566 | C190: 165 | D190: 0.0003789341198 | F190: 0.0002693071331 | O190: =IF(K190="","",AVERAGE(L$26:L190)) ->  | P190: =IFERROR(_xlfn.STDEV.S(L$26:L190)/J190^0.5,"") ->  | U190: 165 | W190: 0.9999945875 | Y190: 1.66 | Z190: 0.9809896091 | AA190: 0.9972204445 | AB190: 0.9926818754 | AC190: 0.997884474 | AD190: 0.9999217068 | AE190: 0.9981269011 | AF190: 0.9349692262
A191: 0.9999945875 | C191: 166 | D191: 0.0003701576361 | F191: 0.0002630387883 | O191: =IF(K191="","",AVERAGE(L$26:L191)) ->  | P191: =IFERROR(_xlfn.STDEV.S(L$26:L191)/J191^0.5,"") ->  | U191: 166 | W191: 0.9999960276 | Y191: 1.67 | Z191: 0.9813553548 | AA191: 0.9974753663 | AB191: 0.9936237413 | AC191: 0.9980637485 | AD191: 0.999928918 | AE191: 0.9982524836 | AF191: 0.9404349515
A192: 0.9999960276 | C192: 167 | D192: 0.0003616816024 | F192: 0.0002569864301 | O192: =IF(K192="","",AVERAGE(L$26:L192)) ->  | P192: =IFERROR(_xlfn.STDEV.S(L$26:L192)/J192^0.5,"") ->  | U192: 167 | W192: 0.999997097 | Y192: 1.68 | Z192: 0.9817129634 | AA192: 0.9977109731 | AB192: 0.9944274696 | AC192: 0.9982411112 | AD192: 0.9999350991 | AE192: 0.9983560154 | AF192: 0.9454265144
A193: 0.999997097 | C193: 168 | D193: 0.0003534925025 | F193: 0.0002511402638 | O193: =IF(K193="","",AVERAGE(L$26:L193)) ->  | P193: =IFERROR(_xlfn.STDEV.S(L$26:L193)/J193^0.5,"") ->  | U193: 168 | W193: 0.9999978875 | Y193: 1.69 | Z193: 0.982062641 | AA193: 0.9979283938 | AB193: 0.9951360834 | AC193: 0.9984186104 | AD193: 0.9999412801 | AE193: 0.9984415585 | AF193: 0.949929499
A194: 0.9999978875 | C194: 169 | D194: 0.0003455775693 | F194: 0.0002454910426 | O194: =IF(K194="","",AVERAGE(L$26:L194)) ->  | P194: =IFERROR(_xlfn.STDEV.S(L$26:L194)/J194^0.5,"") ->  | U194: 169 | W194: 0.9999984694 | Y194: 1.7 | Z194: 0.9824045879 | AA194: 0.9981286951 | AB194: 0.9957637127 | AC194: 0.9985966804 | AD194: 0.9999454008 | AE194: 0.9985139485 | AF194: 0.9539598797
A195: 0.9999984694 | C195: 170 | D195: 0.000337924736 | F195: 0.0002400300317 | O195: =IF(K195="","",AVERAGE(L$26:L195)) ->  | P195: =IFERROR(_xlfn.STDEV.S(L$26:L195)/J195^0.5,"") ->  | U195: 170 | W195: 0.9999988957 | Y195: 1.71 | Z195: 0.9827389985 | AA195: 0.9983129079 | AB195: 0.9963084596 | AC195: 0.9987741578 | AD195: 0.9999515818 | AE195: 0.9985786015 | AF195: 0.9575511634
A196: 0.9999988957 | C196: 171 | D196: 0.0003305225904 | F196: 0.0002347489747 | O196: =IF(K196="","",AVERAGE(L$26:L196)) ->  | P196: =IFERROR(_xlfn.STDEV.S(L$26:L196)/J196^0.5,"") ->  | U196: 171 | W196: 0.9999992067 | Y196: 1.72 | Z196: 0.9830660619 | AA196: 0.9984819964 | AB196: 0.9967806579 | AC196: 0.9989485598 | AD196: 0.9999577629 | AE196: 0.9986413202 | AF196: 0.9607555586
A197: 0.9999992067 | C197: 172 | D197: 0.0003233603327 | F197: 0.000229640062 | O197: =IF(K197="","",AVERAGE(L$26:L197)) ->  | P197: =IFERROR(_xlfn.STDEV.S(L$26:L197)/J197^0.5,"") ->  | U197: 172 | W197: 0.9999994325 | Y197: 1.73 | Z197: 0.9833859619 | AA197: 0.9986368873 | AB197: 0.9972064588 | AC197: 0.999116538 | AD197: 0.9999649741 | AE197: 0.9987082299 | AF197: 0.9636244945
A198: 0.9999994325 | C198: 173 | D198: 0.0003164277373 | F198: 0.0002246959028 | O198: =IF(K198="","",AVERAGE(L$26:L198)) ->  | P198: =IFERROR(_xlfn.STDEV.S(L$26:L198)/J198^0.5,"") ->  | U198: 173 | W198: 0.9999995958 | Y198: 1.74 | Z198: 0.983698877 | AA198: 0.9987784699 | AB198: 0.9976143336 | AC198: 0.9992744188 | AD198: 0.9999690948 | AE198: 0.9987857135 | AF198: 0.9662279073
A199: 0.9999995958 | C199: 174 | D199: 0.0003097151158 | F199: 0.0002199094981 | O199: =IF(K199="","",AVERAGE(L$26:L199)) ->  | P199: =IFERROR(_xlfn.STDEV.S(L$26:L199)/J199^0.5,"") ->  | U199: 174 | W199: 0.9999997133 | Y199: 1.75 | Z199: 0.9840049808 | AA199: 0.9989076278 | AB199: 0.9980122961 | AC199: 0.9994187447 | AD199: 0.9999732155 | AE199: 0.9988786632 | AF199: 0.9686222912
A200: 0.9999997133 | C200: 175 | D200: 0.0003032132841 | F200: 0.000215274216 | O200: =IF(K200="","",AVERAGE(L$26:L200)) ->  | P200: =IFERROR(_xlfn.STDEV.S(L$26:L200)/J200^0.5,"") ->  | U200: 175 | W200: 0.9999997976 | Y200: 1.76 | Z200: 0.984304442 | AA200: 0.9990251995 | AB200: 0.9983849511 | AC200: 0.999546746 | AD200: 0.999976306 | AE200: 0.9989887313 | AF200: 0.9708619977
A201: 0.9999997976 | C201: 176 | D201: 0.0002969135312 | F201: 0.0002107837693 | O201: =IF(K201="","",AVERAGE(L$26:L201)) ->  | P201: =IFERROR(_xlfn.STDEV.S(L$26:L201)/J201^0.5,"") ->  | U201: 176 | W201: 0.9999998577 | Y201: 1.77 | Z201: 0.9845974247 | AA201: 0.9991320151 | AB201: 0.9987061471 | AC201: 0.9996566775 | AD201: 0.9999793965 | AE201: 0.9991145797 | AF201: 0.9729737153
A202: 0.9999998577 | C202: 177 | D202: 0.0002908075903 | F202: 0.0002064321938 | O202: =IF(K202="","",AVERAGE(L$26:L202)) ->  | P202: =IFERROR(_xlfn.STDEV.S(L$26:L202)/J202^0.5,"") ->  | U202: 177 | W202: 0.9999999004 | Y202: 1.78 | Z202: 0.9848840884 | AA202: 0.9992288759 | AB202: 0.9989613325 | AC202: 0.9997479494 | AD202: 0.9999804267 | AE202: 0.9992521305 | AF202: 0.9749691327
A203: 0.9999999004 | C203: 178 | D203: 0.000284887612 | F203: 0.0002022138289 | O203: =IF(K203="","",AVERAGE(L$26:L203)) ->  | P203: =IFERROR(_xlfn.STDEV.S(L$26:L203)/J203^0.5,"") ->  | U203: 178 | W203: 0.9999999305 | Y203: 1.79 | Z203: 0.9851645881 | AA203: 0.9993165599 | AB203: 0.9991551468 | AC203: 0.9998210806 | AD203: 0.9999814569 | AE203: 0.9993947185 | AF203: 0.9768521459
A204: 0.9999999305 | C204: 179 | D204: 0.0002791461392 | F204: 0.0001981232989 | O204: =IF(K204="","",AVERAGE(L$26:L204)) ->  | P204: =IFERROR(_xlfn.STDEV.S(L$26:L204)/J204^0.5,"") ->  | U204: 179 | W204: 0.9999999518 | Y204: 1.8 | Z204: 0.9854390746 | AA204: 0.9993957947 | AB204: 0.9993048836 | AC204: 0.9998775212 | AD204: 0.9999814569 | AE204: 0.9995332445 | AF204: 0.9786219757
... 21 more rows

Sheet PopMean Ws
B1: Worksheet: Computing 90% Confidence Intervals with Small Samples
B2: The "t-stat" is used for small samples. Note that two excel formulas are introduced here that give the same answers as the steps in the book: VAR() and TINV(). This will slightly simplify the calculation. You can use this spreadsheet to compute ranges for larger samples, too. Just add however many rows you need and don't forget to change the references in the cells to capture all the new rows. See how close the answers would be if you just used the "Mathless" table. This sheet will also calculate an estimate of the underlying distribution using a t-distribution. One will notice from the previous example that this may or ay not be a good assumption.
B3: 90% Confidence Interval Calculations (by steps described in book)
B4: Average of Sample Values (step 1.a in book) | D4: =AVERAGE(C18:C117) -> 16
B5: Population Variance | D5: =VAR(C18:C117) -> 17.28571429
B6: SD of the estimate of the mean | D6: =SQRT(D5/COUNT(C18:C117)) -> 1.07349008
B7: t-stat using Excel's "Tinv()" formula (same answer as step 3 in book) | D7: =TINV(0.1,COUNT(C18:C117)-1) -> 1.761310136
B8: Sample error (step 4 in book) | D8: =D7*D6 -> 1.890748959
B9: SD | D9: =_xlfn.STDEV.S(C18:C117) -> 4.157609203
B10: Sample size | D10: =COUNT(C18:C1001) -> 15
B12: Computing bounds for 90% CI (step 5 in book)
B13: Upper bound | D13: =D4+D8 -> 17.89074896
B14: Lower bound | D14: =D4-D8 -> 14.10925104
B16: Data | D16: Chart Data | F16: Std Error for Estimate of Mean (Normalized) | G16: cpf for Sample | H16: Incremental P | I16: Sample | J16: Error of the mean | K16: Confidence Interval Bars | M16: Estimate of Distribution | N16: Estimate of Distribution | O16: Error of the Mean
B17: Data Point | C17: Sample Value | D17: Min | E17: =MIN(C18:C117) -> 9 | F17: -4.2 | G17: =NORMDIST(F17+0.05,0,1,1) -> 1.662376373e-05 | K17: =D14 -> 14.10925104 | L17: 0 | M17: =E17-(E19*100) -> 0.25
A18: 0 | B18: 1 | C18: 12 | D18: Max | E18: =MAX(C18:C117) -> 23 | F18: -4.1 | G18: =NORMDIST(F18+0.05,0,1,1) -> 2.560881647e-05 | H18: =(G18-G17) -> 8.985052744e-06 | I18: =D$4+F18*D$6 -> 11.59869067 | K18: =D14 -> 14.10925104 | L18: =_xlfn.T.DIST(((K18+2*E19)-D$4)/D$6,D$10-1,1)-_xlfn.T.DIST((K18-D$4)/D$6,D$10-1,1) -> 0.01614821334 | M18: =M17+$E$19 -> 0.3375 | N18: =_xlfn.T.DIST((M19-D$4)/D$9,D$10-1,1)-_xlfn.T.DIST((M17-D$4)/D$9,D$10-1,1) -> 8.660318571e-05 | O18: =_xlfn.T.DIST((M19-D$4)/D$6,D$10-1,1)-_xlfn.T.DIST((M17-D$4)/D$6,D$10-1,1) -> 5.412862809e-11
A19: 0 | B19: 2 | C19: 15 | D19: Increment | E19: =(E18-E17)/160 -> 0.0875 | F19: -4 | G19: =NORMDIST(F19+0.05,0,1,1) -> 3.90755966e-05 | H19: =(G19-G18) -> 1.346678012e-05 | I19: 11.70603968 | J19: =_xlfn.T.DIST((I19-D$4)/D$6,D$10-1,1)-_xlfn.T.DIST((I18-D$4)/D$6,D$10-1,1) -> 0.0001169583462 | K19: =D13 -> 17.89074896 | L19: 0 | M19: 0.425 | N19: =_xlfn.T.DIST((M20-D$4)/D$9,D$10-1,1)-_xlfn.T.DIST((M18-D$4)/D$9,D$10-1,1) -> 9.033467184e-05 | O19: =_xlfn.T.DIST((M20-D$4)/D$6,D$10-1,1)-_xlfn.T.DIST((M18-D$4)/D$6,D$10-1,1) -> 5.856837643e-11
A20: 0 | B20: 3 | C20: 19 | F20: -3.9 | G20: =NORMDIST(F20+0.05,0,1,1) -> 5.905891242e-05 | H20: =(G20-G19) -> 1.998331582e-05 | I20: 11.81338869 | J20: 0.0001428526613 | K20: =D13 -> 17.89074896 | L20: =L18 -> 0.01614821334 | M20: 0.5125 | N20: 9.422696162e-05 | O20: 6.339691975e-11
A21: 0 | B21: 4 | C21: 22 | F21: -3.8 | G21: 8.84172852e-05 | H21: =(G21-G20) -> 2.935837278e-05 | I21: 11.9207377 | J21: 0.000174527214 | M21: 0.6 | N21: 9.828685387e-05 | O21: 6.865046312e-11
A22: 0 | B22: 5 | C22: 11 | F22: -3.7 | G22: 0.0001311201544 | H22: =(G22-G21) -> 4.270286922e-05 | I22: 12.0280867 | J22: =_xlfn.T.DIST((I22-D$4)/D$6,D$10-1,1)-_xlfn.T.DIST((I21-D$4)/D$6,D$10-1,1) -> 0.0002132558424 | M22: 0.6875 | N22: 0.0001025214211 | O22: 7.436878394e-11
A23: 0 | B23: 6 | C23: 18 | F23: -3.6 | G23: =NORMDIST(F23+0.05,0,1,1) -> 0.0001926155756 | H23: 6.149542122e-05 | I23: 12.13543571 | J23: 0.000260580695 | M23: 0.775 | N23: 0.0001069380195 | O23: 8.05956042e-11
A24: 0 | B24: 7 | C24: 15 | F24: -3.5 | G24: 0.0002802932768 | H24: 8.767770118e-05 | I24: =D$4+F24*D$6 -> 12.24278472 | J24: 0.0003183630433 | M24: 0.8625 | N24: 0.0001115442991 | O24: 8.737900364e-11
A25: 0 | B25: 8 | C25: 17 | F25: -3.4 | G25: =NORMDIST(F25+0.05,0,1,1) -> 0.0004040578019 | H25: 0.000123764525 | I25: 12.35013373 | J25: 0.0003888414264 | M25: 0.95 | N25: 0.0001163482139 | O25: 9.47718784e-11
A26: 0 | B26: 9 | C26: 23 | F26: -3.3 | G26: 0.0005770250424 | H26: 0.0001729672405 | I26: 12.45748274 | J26: 0.0004746972839 | M26: 1.0375 | N26: 0.0001213580332 | O26: 1.028324506e-10
A27: 0 | B27: 10 | C27: 13 | F27: -3.2 | G27: 0.0008163523128 | H27: 0.0002393272704 | I27: 12.56483174 | J27: 0.0005791278195 | M27: 1.125 | N27: 0.0001265823522 | O27: 1.116248346e-10
A28: 0 | B28: 11 | C28: 9 | F28: -3.1 | G28: 0.001144206831 | H28: 0.0003278545182 | I28: 12.67218075 | J28: 0.0007059252265 | M28: 1.2125 | N28: 0.0001320301034 | O28: 1.212196666e-10
A29: 0 | B29: 12 | C29: 21 | F29: -3 | G29: 0.001588869647 | H29: =(G29-G28) -> 0.0004446628163 | I29: 12.77952976 | J29: 0.0008595605676 | M29: 1.3 | N29: 0.0001377105682 | O29: 1.316948057e-10
A30: 0 | B30: 13 | C30: 18 | F30: -2.9 | G30: 0.002185961455 | H30: 0.0005970918075 | I30: 12.88687877 | J30: 0.00104526947 | M30: 1.3875 | N30: 0.0001436333885 | O30: 1.431361129e-10
A31: 0 | B31: 14 | C31: 14 | F31: -2.8 | G31: 0.002979763235 | H31: 0.0007938017801 | I31: 12.99422778 | J31: 0.001269135345 | M31: 1.475 | N31: 0.0001498085794 | O31: 1.5563832e-10
A32: 0 | B32: 15 | C32: 13 | F32: -2.7 | G32: 0.004024588543 | H32: 0.001044825308 | I32: 13.10157678 | J32: 0.001538164049 | M32: 1.5625 | N32: 0.0001562465409 | O32: 1.693059973e-10
A33: 0 | B33: 16 | F33: -2.6 | G33: 0.005386145954 | H33: 0.001361557411 | I33: 13.20892579 | J33: 0.001860341745 | M33: 1.65 | N33: 0.0001629580709 | O33: 1.84254632e-10
A34: 0 | B34: 17 | F34: -2.5 | G34: 0.007142810735 | H34: 0.001756664781 | I34: 13.3162748 | J34: 0.002244665321 | M34: 1.7375 | N34: 0.0001699543782 | O34: 2.006118319e-10
A35: 0 | B35: 18 | F35: -2.4 | G35: 0.009386705535 | H35: 0.0022438948 | I35: 13.42362381 | J35: 0.002701132076 | M35: 1.825 | N35: 0.0001772470953 | O35: 2.185186676e-10
A36: 0 | B36: 19 | F36: -2.3 | G36: 0.01222447266 | H36: 0.00283776712 | I36: 13.53097282 | J36: 0.003240672866 | M36: 1.9125 | N36: 0.0001848482922 | O36: 2.381311728e-10
A37: 0 | B37: 20 | F37: -2.2 | G37: 0.01577760739 | H37: 0.003553134736 | I37: 13.63832182 | J37: 0.00387501066 | M37: 2 | N37: 0.0001927704897 | O37: 2.596220187e-10
A38: 0 | B38: 21 | F38: -2.1 | G38: 0.02018221541 | H38: 0.004404608015 | I38: 13.74567083 | J38: 0.004616425079 | M38: 2.0875 | N38: 0.0002010266734 | O38: 2.831823872e-10
A39: 0 | B39: 22 | F39: -2 | G39: 0.02558805952 | H39: 0.005405844116 | I39: 13.85301984 | J39: 0.005477403457 | M39: 2.175 | N39: 0.0002096303076 | O39: 3.09024065e-10
A40: 0 | B40: 23 | F40: -1.9 | G40: 0.0321567748 | H40: 0.006568715274 | I40: 13.96036885 | J40: 0.006470161043 | M40: 2.2625 | N40: 0.00021859535 | O40: 3.373817874e-10
A41: 0 | B41: 24 | F41: -1.8 | G41: 0.04005915686 | H41: 0.007902382068 | I41: 14.06771786 | J41: 0.00760601776 | M41: 2.35 | N41: 0.0002279362655 | O41: 3.68515863e-10
A42: 0 | B42: 25 | F42: -1.7 | G42: 0.04947146803 | H42: 0.00941231117 | I42: 14.17506686 | J42: 0.008894627308 | M42: 2.4375 | N42: 0.0002376680412 | O42: 4.027151131e-10
A43: 0 | B43: 26 | F43: -1.6 | G43: 0.060570758 | H43: 0.01109928997 | I43: 14.28241587 | J43: 0.0103430666 | M43: 2.525 | N43: 0.000247806201 | O43: 4.403001685e-10
A44: 0 | B44: 27 | F44: -1.5 | G44: 0.07352925961 | H44: 0.01295850161 | I44: 14.38976488 | J44: 0.01195480989 | M44: 2.6125 | N44: 0.0002583668206 | O44: 4.81627165e-10
A45: 0 | B45: 28 | F45: -1.4 | G45: 0.08850799144 | H45: 0.01497873183 | I45: 14.49711389 | J45: 0.0137286318 | M45: 2.7 | N45: 0.000269366542 | O45: 5.270918927e-10
A46: 0 | B46: 29 | F46: -1.3 | G46: 0.1056497737 | H46: 0.01714178223 | I46: 14.6044629 | J46: 0.01565750543 | M46: 2.7875 | N46: 0.0002808225891 | O46: 5.771344538e-10
A47: 0 | B47: 30 | F47: -1.2 | G47: 0.1250719356 | H47: 0.01942216197 | I47: 14.7118119 | J47: 0.01772758413 | M47: 2.875 | N47: 0.0002927527825 | O47: 6.322444972e-10
A48: 0 | B48: 31 | F48: -1.1 | G48: 0.1468590564 | H48: 0.02178712074 | I48: 14.81916091 | J48: 0.01991737408 | M48: 2.9625 | N48: 0.0003051755544 | O48: 6.929671023e-10
A49: 0 | B49: 32 | F49: -1 | G49: 0.1710561263 | H49: 0.02419706993 | I49: 14.92650992 | J49: 0.0221972172 | M49: 3.05 | N49: 0.0003181099639 | O49: 7.599093984e-10
A50: 0 | B50: 33 | F50: -0.9 | G50: 0.1976625431 | H50: 0.02660641681 | I50: =D$4+F50*D$6 -> 15.03385893 | J50: 0.02452920457 | M50: 3.1375 | N50: 0.0003315757118 | O50: 8.337480154e-10
A51: 0 | B51: 34 | F51: -0.8 | G51: 0.2266273524 | H51: 0.02896480925 | I51: 15.14120794 | J51: =_xlfn.T.DIST((I51-D$4)/D$6,D$10-1,1)-_xlfn.T.DIST((I50-D$4)/D$6,D$10-1,1) -> 0.02686762679 | M51: 3.225 | N51: 0.0003455931556 | O51: 9.152374747e-10
A52: 0 | B52: 35 | F52: -0.7 | G52: 0.2578461108 | H52: 0.03121875843 | I52: 15.24855694 | J52: 0.0291600368 | M52: 3.3125 | N52: 0.0003601833242 | O52: 1.005219646e-09
A53: 0 | B53: 36 | F53: -0.6 | G53: 0.2911596868 | H53: 0.03331357598 | I53: 15.35590595 | J53: 0.03134895267 | M53: 3.4 | N53: 0.0003753679323 | O53: 1.104634412e-09
A54: 0 | B54: 37 | F54: -0.5 | G54: 0.3263552203 | H54: 0.0351955335 | I54: 15.46325496 | J54: 0.03337416558 | M54: 3.4875 | N54: 0.0003911693952 | O54: 1.214531697e-09
A55: 0 | B55: 38 | F55: -0.4 | G55: 0.3631693488 | H55: 0.03681412854 | I55: 15.57060397 | J55: 0.03517554781 | M55: 3.575 | N55: 0.0004076108422 | O55: 1.336085057e-09
A56: 0 | B56: 39 | F56: -0.3 | G56: 0.4012936743 | H56: 0.03812432549 | I56: 15.67795298 | J56: 0.03669618564 | M56: 3.6625 | N56: 0.0004247161306 | O56: 1.470607025e-09
A57: 0 | B57: 40 | F57: -0.2 | G57: 0.4403823076 | H57: 0.03908863331 | I57: 15.78530198 | J57: 0.03788560387 | M57: 3.75 | N57: 0.0004425098592 | O57: 1.619566462e-09
A58: 0 | B58: 41 | F58: -0.1 | G58: 0.4800611942 | H58: 0.03967888653 | I58: 15.89265099 | J58: 0.03870281162 | M58: 3.8375 | N58: 0.0004610173806 | O58: 1.784608181e-09
A59: 0 | B59: 42 | F59: 0 | G59: 0.5199388058 | H59: 0.03987761168 | I59: 16 | J59: 0.03911889293 | M59: 3.925 | N59: 0.0004802648141 | O59: 1.967575169e-09
A60: 0 | B60: 43 | F60: 0.1 | G60: 0.5596176924 | H60: 0.03967888653 | I60: 16.10734901 | J60: 0.03911889293 | M60: 4.0125 | N60: 0.0005002790568 | O60: 2.170533749e-09
A61: 0 | B61: 44 | F61: 0.2 | G61: 0.5987063257 | H61: 0.03908863331 | I61: 16.21469802 | J61: 0.03870281162 | M61: 4.1 | N61: 0.0005210877949 | O61: 2.395802097e-09
A62: 0 | B62: 45 | F62: 0.3 | G62: 0.6368306512 | H62: 0.03812432549 | I62: 16.32204702 | J62: 0.03788560387 | M62: 4.1875 | N62: 0.0005427195142 | O62: 2.645982593e-09
A63: 0 | B63: 46 | F63: 0.4 | G63: 0.6736447797 | H63: 0.03681412854 | I63: 16.42939603 | J63: 0.03669618564 | M63: 4.275 | N63: 0.0005652035089 | O63: 2.923998533e-09
A64: 0 | B64: 47 | F64: 0.5 | G64: 0.7088403132 | H64: 0.0351955335 | I64: 16.53674504 | J64: 0.03517554781 | M64: 4.3625 | N64: 0.0005885698907 | O64: 3.233135815e-09
A65: 0 | B65: 48 | F65: 0.6 | G65: 0.7421538892 | H65: 0.03331357598 | I65: 16.64409405 | J65: 0.03337416558 | M65: 4.45 | N65: 0.000612849596 | O65: 3.577090323e-09
A66: 0 | B66: 49 | F66: 0.7 | G66: 0.7733726476 | H66: 0.03121875843 | I66: 16.75144306 | J66: 0.03134895267 | M66: 4.5375 | N66: 0.0006380743921 | O66: 3.960021807e-09
A67: 0 | B67: 50 | F67: 0.8 | G67: 0.8023374569 | H67: 0.02896480925 | I67: 16.85879206 | J67: 0.0291600368 | M67: 4.625 | N67: 0.0006642768827 | O67: 4.386615193e-09
A68: 0 | B68: 51 | F68: 0.9 | G68: 0.8289438737 | H68: 0.02660641681 | I68: 16.96614107 | J68: 0.02686762679 | M68: 4.7125 | N68: 0.0006914905117 | O68: 4.862150406e-09
A69: 0 | B69: 52 | F69: 1 | G69: 0.8531409436 | H69: 0.02419706993 | I69: 17.07349008 | J69: 0.02452920457 | M69: 4.8 | N69: 0.0007197495651 | O69: 5.392581938e-09
A70: 0 | B70: 53 | F70: 1.1 | G70: 0.8749280644 | H70: 0.02178712074 | I70: 17.18083909 | J70: 0.0221972172 | M70: 4.8875 | N70: 0.0007490891726 | O70: 5.984629572e-09
A71: 0 | B71: 54 | F71: 1.2 | G71: 0.8943502263 | H71: 0.01942216197 | I71: 17.2881881 | J71: 0.01991737408 | M71: 4.975 | N71: 0.0007795453064 | O71: 6.645881927e-09
A72: 0 | B72: 55 | F72: 1.3 | G72: 0.9114920086 | H72: 0.01714178223 | I72: 17.3955371 | J72: 0.01772758413 | M72: 5.0625 | N72: 0.0008111547785 | O72: 7.384914681e-09
A73: 0 | B73: 56 | F73: 1.4 | G73: 0.9264707404 | H73: 0.01497873183 | I73: 17.50288611 | J73: 0.01565750543 | M73: 5.15 | N73: 0.0008439552367 | O73: 8.211425688e-09
A74: 0 | B74: 57 | F74: 1.5 | G74: 0.939429242 | H74: 0.01295850161 | I74: 17.61023512 | J74: 0.0137286318 | M74: 5.2375 | N74: 0.0008779851577 | O74: 9.13638948e-09
A75: 0 | B75: 58 | F75: 1.6 | G75: 0.950528532 | H75: 0.01109928997 | I75: 17.71758413 | J75: 0.01195480989 | M75: 5.325 | N75: 0.0009132838386 | O75: 1.017223409e-08
A76: 0 | B76: 59 | F76: 1.7 | G76: 0.9599408431 | H76: 0.00941231117 | I76: 17.82493314 | J76: 0.0103430666 | M76: 5.4125 | N76: 0.0009498913857 | O76: 1.133304352e-08
A77: 0 | B77: 60 | F77: 1.8 | G77: 0.9678432252 | H77: 0.007902382068 | I77: 17.93228214 | J77: 0.008894627308 | M77: 5.5 | N77: 0.0009878487016 | O77: 1.263478987e-08
A78: 0 | B78: 61 | F78: 1.9 | G78: 0.9744119405 | H78: 0.006568715274 | I78: 18.03963115 | J78: 0.00760601776 | M78: 5.5875 | N78: 0.001027197469 | O78: 1.409559938e-08
A79: 0 | B79: 62 | F79: 2 | G79: 0.9798177846 | H79: 0.005405844116 | I79: 18.14698016 | J79: 0.006470161042 | M79: 5.675 | N79: 0.00106798013 | O79: 1.573605802e-08
A80: 0 | B80: 63 | F80: 2.1 | G80: 0.9842223926 | H80: 0.004404608015 | I80: 18.25432917 | J80: 0.005477403457 | M80: 5.7625 | N80: 0.00111023987 | O80: 1.757956223e-08
A81: 0 | B81: 64 | F81: 2.2 | G81: 0.9877755273 | H81: 0.003553134736 | I81: 18.36167818 | J81: 0.004616425079 | M81: 5.85 | N81: 0.001154020585 | O81: 1.965272228e-08
A82: 0 | B82: 65 | F82: 2.3 | G82: =NORMDIST(F82+0.05,0,1,1) -> 0.9906132945 | H82: 0.00283776712 | I82: =D$4+F82*D$6 -> 18.46902718 | J82: 0.00387501066 | M82: =M81+$E$19 -> 5.9375 | N82: 0.001199366861 | O82: 2.198582608e-08
A83: 0 | B83: 66 | F83: 2.4 | G83: 0.9928571893 | H83: =(G83-G82) -> 0.0022438948 | I83: 18.57637619 | J83: =_xlfn.T.DIST((I83-D$4)/D$6,D$10-1,1)-_xlfn.T.DIST((I82-D$4)/D$6,D$10-1,1) -> 0.003240672866 | M83: 6.025 | N83: =_xlfn.T.DIST((M84-D$4)/D$9,D$10-1,1)-_xlfn.T.DIST((M82-D$4)/D$9,D$10-1,1) -> 0.001246323938 | O83: =_xlfn.T.DIST((M84-D$4)/D$6,D$10-1,1)-_xlfn.T.DIST((M82-D$4)/D$6,D$10-1,1) -> 2.461337318e-08
A84: 0 | B84: 67 | F84: 2.5 | G84: 0.994613854 | H84: 0.001756664781 | I84: 18.6837252 | J84: 0.002701132076 | M84: 6.1125 | N84: 0.001294937679 | O84: 2.757468992e-08
A85: 0 | B85: 68 | F85: 2.6 | G85: 0.9959754115 | H85: 0.001361557411 | I85: 18.79107421 | J85: 0.002244665321 | M85: 6.2 | N85: 0.001345254528 | O85: 3.09146386e-08
A86: 0 | B86: 69 | F86: 2.7 | G86: 0.9970202368 | H86: 0.001044825308 | I86: 18.89842322 | J86: 0.001860341745 | M86: 6.2875 | N86: 0.001397321471 | O86: 3.468443566e-08
A87: 0 | B87: 70 | F87: 2.8 | G87: 0.9978140385 | H87: 0.0007938017801 | I87: 19.00577222 | J87: 0.001538164049 | M87: 6.375 | N87: 0.001451185987 | O87: 3.894259637e-08
A88: 0 | B88: 71 | F88: 2.9 | G88: 0.9984111304 | H88: 0.0005970918075 | I88: 19.11312123 | J88: 0.001269135345 | M88: 6.4625 | N88: 0.001506895999 | O88: 4.375602641e-08
A89: 0 | B89: 72 | F89: 3 | G89: 0.9988557932 | H89: 0.0004446628163 | I89: 19.22047024 | J89: 0.00104526947 | M89: 6.55 | N89: 0.001564499821 | O89: 4.920128416e-08
A90: 0 | B90: 73 | F90: 3.1 | G90: 0.9991836477 | H90: 0.0003278545182 | I90: 19.32781925 | J90: 0.0008595605676 | M90: 6.6375 | N90: 0.001624046098 | O90: 5.536604136e-08
A91: 0 | B91: 74 | F91: 3.2 | G91: 0.999422975 | H91: 0.0002393272704 | I91: 19.43516826 | J91: 0.0007059252265 | M91: 6.725 | N91: 0.001685583739 | O91: 6.235077488e-08
A92: 0 | B92: 75 | F92: 3.3 | G92: 0.9995959422 | H92: 0.0001729672405 | I92: 19.54251726 | J92: 0.0005791278195 | M92: 6.8125 | N92: 0.001749161856 | O92: 7.027072745e-08
A93: 0 | B93: 76 | F93: 3.4 | G93: 0.9997197067 | H93: 0.000123764525 | I93: 19.64986627 | J93: 0.0004746972839 | M93: 6.9 | N93: 0.001814829684 | O93: 7.925818184e-08
A94: 0 | B94: 77 | F94: 3.5 | G94: 0.9998073844 | H94: 8.767770118e-05 | I94: 19.75721528 | J94: 0.0003888414264 | M94: 6.9875 | N94: 0.001882636508 | O94: 8.946510079e-08
A95: 0 | B95: 78 | F95: 3.6 | G95: 0.9998688798 | H95: 6.149542122e-05 | I95: 19.86456429 | J95: 0.0003183630433 | M95: 7.075 | N95: 0.001952631576 | O95: 1.010661937e-07
A96: 0 | B96: 79 | F96: 3.7 | G96: 0.9999115827 | H96: 4.270286922e-05 | I96: 19.9719133 | J96: 0.000260580695 | M96: 7.1625 | N96: 0.002024864014 | O96: 1.142624819e-07
A97: 0 | B97: 80 | F97: 3.8 | G97: 0.9999409411 | H97: 2.935837278e-05 | I97: 20.0792623 | J97: 0.0002132558424 | M97: 7.25 | N97: 0.002099382731 | O97: 1.292854464e-07
A98: 0 | B98: 81 | F98: 3.9 | G98: 0.9999609244 | H98: 1.998331582e-05 | I98: 20.18661131 | J98: 0.000174527214 | M98: 7.3375 | N98: 0.002176236321 | O98: 1.464018577e-07
A99: 0 | B99: 82 | F99: 4 | G99: 0.9999743912 | H99: 1.346678012e-05 | I99: 20.29396032 | J99: 0.0001428526613 | M99: 7.425 | N99: 0.002255472957 | O99: 1.659194028e-07
A100: 0 | B100: 83 | F100: 4.1 | G100: 0.9999833762 | H100: 8.985052744e-06 | I100: 20.40130933 | J100: 0.0001169583462 | M100: 7.5125 | N100: 0.002337140286 | O100: 1.881932477e-07
A101: 0 | B101: 84 | F101: 4.2 | G101: 0.9999893115 | H101: 5.935237955e-06 | I101: 20.50865834 | J101: 9.579483843e-05 | M101: 7.6 | N101: 0.002421285306 | O101: 2.13633695e-07
A102: 0 | B102: 85 | J102: -0.9995547283 | M102: 7.6875 | N102: 0.002507954254 | O102: 2.427151264e-07
A103: 0 | B103: 86 | M103: 7.775 | N103: 0.002597192473 | O103: 2.759864547e-07
A104: 0 | B104: 87 | M104: 7.8625 | N104: 0.002689044283 | O104: 3.140833474e-07
A105: 0 | B105: 88 | M105: 7.95 | N105: 0.002783552847 | O105: 3.577425329e-07
A106: 0 | B106: 89 | M106: 8.0375 | N106: 0.002880760022 | O106: 4.078185574e-07
A107: 0 | B107: 90 | M107: 8.125 | N107: 0.002980706214 | O107: 4.653034248e-07
A108: 0 | B108: 91 | M108: 8.2125 | N108: 0.00308343023 | O108: 5.313496324e-07
A109: 0 | B109: 92 | M109: 8.3 | N109: 0.003188969109 | O109: 6.072972078e-07
A110: 0 | B110: 93 | M110: 8.3875 | N110: 0.00329735797 | O110: 6.947054643e-07
A111: 0 | B111: 94 | M111: 8.475 | N111: 0.003408629839 | O111: 7.953903217e-07
A112: 0 | B112: 95 | M112: 8.5625 | N112: 0.003522815474 | O112: 9.114681967e-07
A113: 0 | B113: 96 | M113: 8.65 | N113: 0.003639943197 | O113: 1.045407654e-06
A114: 0 | B114: 97 | M114: 8.7375 | N114: 0.003760038706 | O114: 1.20009022e-06
A115: 0 | B115: 98 | M115: 8.825 | N115: 0.003883124896 | O115: 1.378882044e-06
A116: 0 | B116: 99 | M116: 8.9125 | N116: 0.004009221669 | O116: 1.585718362e-06
A117: 0 | B117: 100 | M117: 9 | N117: 0.004138345746 | O117: 1.825203134e-06
M118: 9.0875 | N118: 0.004270510477 | O118: 2.102726624e-06
M119: 9.175 | N119: 0.004405725643 | O119: 2.42460422e-06
M120: 9.2625 | N120: 0.004543997264 | O120: 2.798240425e-06
M121: 9.35 | N121: 0.004685327401 | O121: 3.232322635e-06
M122: 9.4375 | N122: 0.004829713963 | O122: 3.737050233e-06
M123: 9.525 | N123: 0.004977150509 | O123: 4.324405506e-06
M124: 9.6125 | N124: 0.005127626053 | O124: 5.008474132e-06
M125: 9.7 | N125: 0.005281124873 | O125: 5.805824387e-06
M126: 9.7875 | N126: 0.005437626322 | O126: 6.735955938e-06
M127: 9.875 | N127: 0.00559710464 | O127: 7.821831056e-06
M128: 9.9625 | N128: 0.005759528768 | O128: 9.090503439e-06
M129: 10.05 | N129: 0.00592486218 | O129: 1.057386259e-05
M130: 10.1375 | N130: 0.006093062701 | O130: 1.230951497e-05
M131: 10.225 | N131: 0.006264082348 | O131: 1.434182681e-05
M132: 10.3125 | N132: 0.006437867173 | O132: 1.672315813e-05
M133: 10.4 | N133: 0.006614357111 | O133: 1.951532244e-05
M134: 10.4875 | N134: 0.006793485846 | O134: 2.279131273e-05
M135: 10.575 | N135: 0.006975180676 | O135: 2.663734121e-05
M136: 10.6625 | N136: 0.007159362404 | O136: 3.115524837e-05
M137: 10.75 | N137: 0.007345945225 | O137: 3.646534596e-05
M138: 10.8375 | N138: 0.007534836642 | O138: 4.270976894e-05
M139: 10.925 | N139: 0.007725937385 | O139: 5.005642335e-05
M140: 11.0125 | N140: 0.00791914135 | O140: 5.870363012e-05
M141: 11.1 | N141: 0.008114335557 | O141: 6.888557987e-05
M142: 11.1875 | N142: 0.008311400116 | O142: 8.087872945e-05
M143: 11.275 | N143: 0.008510208223 | O143: 9.500928911e-05
M144: 11.3625 | N144: 0.008710626166 | O144: 0.0001116619673
M145: 11.45 | N145: 0.008912513352 | O145: 0.00013129016
M146: =M145+$E$19 -> 11.5375 | N146: 0.009115722359 | O146: 0.0001544277898
M147: 11.625 | N147: =_xlfn.T.DIST((M148-D$4)/D$9,D$10-1,1)-_xlfn.T.DIST((M146-D$4)/D$9,D$10-1,1) -> 0.009320099004 | O147: =_xlfn.T.DIST((M148-D$4)/D$6,D$10-1,1)-_xlfn.T.DIST((M146-D$4)/D$6,D$10-1,1) -> 0.0001817030215
M148: 11.7125 | N148: 0.009525482435 | O148: 0.0002138540928
M149: 11.8 | N149: 0.009731705248 | O149: 0.0002517475181
M150: 11.8875 | N150: 0.009938593618 | O150: 0.000296398923
M151: 11.975 | N151: 0.01014596747 | O151: 0.0003489967731
M152: 12.0625 | N152: 0.01035364064 | O152: 0.000410929238
M153: 12.15 | N153: 0.01056142111 | O153: 0.0004838144065
M154: 12.2375 | N154: 0.01076911123 | O154: 0.0005695340098
M155: 12.325 | N155: 0.01097650798 | O155: 0.0006702707263
M156: 12.4125 | N156: 0.01118340321 | O156: 0.0007885490199
M157: 12.5 | N157: 0.011389584 | O157: 0.0009272792955
M158: 12.5875 | N158: 0.01159483296 | O158: 0.00108980493
M159: 12.675 | N159: 0.01179892857 | O159: 0.001279951448
M160: 12.7625 | N160: 0.01200164559 | O160: 0.001502076747
M161: 12.85 | N161: 0.01220275539 | O161: 0.001761120825
M162: 12.9375 | N162: 0.01240202645 | O162: 0.002062652923
M163: 13.025 | N163: 0.01259922473 | O163: 0.002412913373
M164: 13.1125 | N164: 0.01279411414 | O164: 0.002818846716
M165: 13.2 | N165: 0.01298645704 | O165: 0.003288121876
M166: 13.2875 | N166: 0.01317601471 | O166: 0.00382913434
M167: 13.375 | N167: 0.01336254785 | O167: 0.004450984484
M168: 13.4625 | N168: 0.01354581713 | O168: 0.005163425379
M169: 13.55 | N169: 0.0137255837 | O169: 0.00597677285
M170: 13.6375 | N170: 0.01390160974 | O170: 0.006901770124
M171: 13.725 | N171: 0.014073659 | O171: 0.007949399485
M172: 13.8125 | N172: 0.0142414974 | O172: 0.009130633823
M173: 13.9 | N173: 0.01440489358 | O173: 0.01045612224
M174: 13.9875 | N174: 0.01456361943 | O174: 0.01193580588
M175: 14.075 | N175: 0.01471745073 | O175: 0.01357846319
M176: 14.1625 | N176: 0.01486616767 | O176: 0.01539118785
M177: 14.25 | N177: 0.01500955545 | O177: 0.01737880774
M178: 14.3375 | N178: 0.0151474048 | O178: 0.01954325938
M179: 14.425 | N179: 0.01527951261 | O179: 0.02188293902
M180: 14.5125 | N180: 0.0154056824 | O180: 0.02439205887
M181: 14.6 | N181: 0.01552572488 | O181: 0.02706004374
M182: 14.6875 | N182: 0.01563945851 | O182: 0.02987100949
M183: 14.775 | N183: 0.01574670994 | O183: 0.03280336908
M184: 14.8625 | N184: 0.01584731455 | O184: 0.0358296137
M185: 14.95 | N185: 0.01594111688 | O185: 0.03891631468
M186: 15.0375 | N186: 0.01602797109 | O186: 0.04202438637
M187: 15.125 | N187: 0.01610774137 | O187: 0.04510963947
M188: 15.2125 | N188: 0.01618030235 | O188: 0.0481236398
M189: 15.3 | N189: 0.01624553946 | O189: 0.05101486869
M190: 15.3875 | N190: 0.01630334925 | O190: 0.05373015957
M191: 15.475 | N191: 0.01635363969 | O191: 0.05621636252
M192: 15.5625 | N192: 0.01639633049 | O192: 0.05842216669
M193: 15.65 | N193: 0.01643135328 | O193: 0.06029999155
M194: 15.7375 | N194: 0.01645865185 | O194: 0.06180784463
M195: 15.825 | N195: 0.01647818229 | O195: 0.06291103698
M196: 15.9125 | N196: 0.01648991317 | O196: 0.06358365048
M197: 16 | N197: 0.01649382556 | O197: 0.06380966209
M198: 16.0875 | N198: 0.01648991317 | O198: 0.06358365048
M199: 16.175 | N199: 0.01647818229 | O199: 0.06291103698
M200: 16.2625 | N200: 0.01645865185 | O200: 0.06180784463
M201: 16.35 | N201: 0.01643135328 | O201: 0.06029999155
M202: 16.4375 | N202: 0.01639633049 | O202: 0.05842216669
... 418 more rows

Sheet Data
A1: Data for the Worksheets
A2: Instructions: This page contains data that is on the designated worksheets so the user can use them to see the original results or reset the worksheets after using them.
A3: Population Mean Worksheet
A4: Sample Value | B4: Survey Results: Case Example (Hours spent per week)
A6: 19.60341451 | B6: 3.2
A7: 14 | B7: 5.8
A8: 29.77796994 | B8: 6.5
A9: 19 | B9: 6.5
A10: 22.47266207 | B10: 7.1
A11: 36 | B11: 7.5
A12: 26.24873078 | B12: 8.4
A13: 32.49631261 | B13: 8.9
A14: 17 | B14: 9
A15: 35 | B15: 9.5
A16: 26.44677252 | B16: 10.1
A17: 39 | B17: 10.2
A18: 41.5 | B18: 10.5
A19: 22.85143994 | B19: 11.3
A20: 30.26941439 | B20: 12.2
A21: 34
A22: 23.50836979
A23: 22.52725565
A24: 21.82083612
A25: 28.548209
